{"text_format":"1","workbook":"xlsx","n_sheets":23,"sheets":["Cover Page","Facility Info","Contents","Operational Data","Operational Summary","Perf. Form 1","Energy Form 1","Permit Compliance","Improvements","Public Liasion","CO2 N2O","Residue Quality ","Water","Air (periodic)","Air (CEMS)","HCl","SO2","NOx","TOC","Particulates","CO 95% 10 min","NH3","Template changes log"],"not_rendered":{"charts":7,"images":3,"macros":1,"external_links":0,"defined_names":23,"comments":0,"pivot_tables":0},"unopened":[],"bounds":{"document_bytes":16777216,"sheet_cells":100000,"rows_first":2000,"rows_last":500,"rows_between":2000,"halvings":0,"cell_chars":16384,"cell_head_chars":4096},"cells_cut":0,"cells_raw":0,"read":"whole","date_system":"1900"}

{"sheet":"Cover Page","index":0,"n_rows":53,"n_cols":14,"rows_kept":53,"cut":false,"hidden":false,"merged":[[48,2,48,3],[48,6,48,8],[52,2,52,3],[36,1,36,8],[40,2,40,8],[42,2,42,4],[44,2,44,4],[46,2,46,3],[46,6,46,8],[13,13,18,15],[34,1,34,8],[0,3,5,6],[7,1,23,8],[28,1,28,8],[30,1,30,8],[32,1,32,8]]}
[null,null,null,"Add company logo"]
[null,null,null,null,null,null,null,null,null,null,null,null,null,"Version 24.2b (for incinerators) - 27/11/24"]
[]
[null,null,null,null,null,null,null,null,null,null,null,null,null,"Note that there is another version of this template available for co-incinerators"]
[]
[]
[]
[null,"Add photo"]
[]
[]
[]
[]
[null,null,null,null,null,null,null,null,null,null,null,null,null,"Notes:"]
[null,null,null,null,null,null,null,null,null,null,null,null,null,"This template may require adjustments by individual operators to meet specific reporting requirements as defined in the site Permit(s)"]
[]
[]
[]
[]
[]
[]
[]
[]
[]
[]
[]
[]
[]
[]
[null,"Annual Performance Report 2024"]
[]
[null,"Permit EPR/ZP3937KL"]
[]
[null,"Severnside Energy Recovery Centre",null,null,null,null,null,null,null,null," "]
[]
[]
[]
[null,"SUEZ Recycling and Recovery UK Ltd"]
[]
[null,"Year:",2024]
[]
[null,"Address:","Severn Road, Severnside, Hallen, South Gloucestershire, BS10 7GB"]
[]
[null,"Tel: ","0117 938 1229"]
[]
[null,"Email: ","enquiries.uk@suez.com"]
[]
[null,"Prepared by:","Jasmine Bressler\nKrishna Patel\nRichard Watkins",null,null,"Position:","EIR Advisor\nTechnical Plant Engineer\nEIR Manager"]
[]
[null,"Approved by:","David Appleby",null,null,"Position:","Plant Manager"]
[]
[null,"Version:",1]
[]
[null,"Issue Date:","2025-01-27"]

{"sheet":"Facility Info","index":1,"n_rows":22,"n_cols":11,"rows_kept":22,"cut":false,"hidden":false,"merged":[[4,0,17,8],[21,0,53,8],[4,10,13,13],[21,10,30,13]]}
[{"$f":"+'Cover Page'!$B$29","v":"Annual Performance Report 2024"},null,null,null,{"$f":"+'Cover Page'!$B$33","v":"Severnside Energy Recovery Centre"}]
[]
["Plant Description and Design",null,null,null,null,null,null,null,null,null,"Notes:"]
[]
["The installation is an Energy from Waste (EfW) plant which can process up to 467,082 tonnes of residual (non-recyclable) Commercial and Industrial and Municipal waste per annum, leading to a net export of approximately 37 MW of electrical energy to the National Grid. The facility comprises two identical moving grate incinerator combustion lines with a combined capacity of approximately 50 tonne/hr of waste of an approximate 9.8MJ/kg calorific value. The waste is delivered to the site by road, and rail by a dedicated onsite railhead served by two gantry cranes. The plant has two auxiliary burners to support start-up and shutdown on each incineration line, and a stand-by diesel generator to support emergency shutdown in the event of power failure.\n\nThe incinerator bottom ash (IBA) waste on the site is quenched to control dust fugitive emissions and transferred by covered conveyors to the onsite bottom ash recycling plant. The bottom ash recycling plant uses magnets, eddy current separators and a trommel to recover ferrous metals and non-ferrous metals from the bottom ash.\n\nHazardous air pollution control residues (APCR) from the flue gas treatment plant are collected and removed offsite for treatment. The treatment process involves the removal of contaminants and reuse of the fine ash material in a lime rich filter cake product for land remediation.\n\nSNCR (ammonia) is used to reduce emissions of oxides of nitrogen, lime to reduce acid gas emissions and carbon injection for reduction of organics including dioxins and PAH emissions, and heavy metals. Bag filters within the flue gas treatment plant remove dust (particulates) from the emissions to air. The treated emissions to air are released through two 118 metre stacks comprising two flues that run the full length of the stack (one for each incineration line). A continuous emissions monitoring system (CEMS) is installed, as required by the permit, to provide continuous analysis of oxides of nitrogen, sulphur dioxide, carbon monoxide, carbon dioxide, hydrogen chloride, particulates, total organic carbon, ammonia and nitrous oxide emissions to air from the two stacks. \n\nThe main emissions to air from the site are the combustion gases, predominantly carbon dioxide and water vapour. Trace gases present include oxides of nitrogen, sulphur dioxide, hydrogen chloride, ammonia, dioxins and furans, dioxin like PCB's and  polyaromatic hydrocarbons. Very low levels of particulates and some heavy metals may also be present. There are no emissions from the process to controlled waters. Water discharge of uncontaminated surface (rain) water is permitted.\n\nThe Severn Estuary SAC, SSSI, SPA and RAMSAR sites are within 10km of the site, along with the River Wye and Avon Gorge Woodlands.",null,null,null,null,null,null,null,null,null,"Include summary of plant design, design capacity, no. of combustion lines, electrical and heat capacity and any other general information that describes the facility, its location and purpose "]
[]
[]
[]
[]
[]
[]
[]
[]
[]
[]
[]
[]
[]
[]
["Summary of Operational Processes and Procedures"]
[]
["Activity listed in Schedule 1 of the EP Regulations\nS5.1 A1 (b) The incineration of non-hazardous waste in a waste incineration plant with a capacity of 3 tonnes per hour or more.\nFrom receipt of commercial, industrial and municipal waste by road and/or rail to storage of gas oil auxiliary fuel, to incineration of waste and removal of ash. The receipt, handling, storage, processing and treatment of incinerator bottom ash only from within the installation.\n\nDirectly Associated Activities\nThe generation of up to 39 MWe electrical power, with approximately 37 MWe for export to the National Grid, using a steam turbine from energy recovered from the flue gases. From receipt of commercial, industrial and municipal waste by road and/or rail to storage of gas oil auxiliary fuel, to incineration of\nwaste and removal of ash. The receipt, handling, storage, processing and treatment of incinerator bottom ash only from within the installation.\n\nStandby diesel generator for providing emergency electrical power to the plant in the event of supply\ninterruption. From receipt of diesel fuel to production of electricity for controlled shutdown of incinerator in the event of power failure at the site.\n\nRailhead; operation of designated railhead for the receipt of waste for thermal treatment and the potential dispatch by rail of recycled bottom ash as a secondary aggregate. From receipt of waste to the potential loading of processed IBA, limited within the site boundary.\n\nPlant Description\nIncoming contract waste is delivered to site by rail with each train carrying approximately 1,000 tonnes of waste in 78 containers. Each container is transferred by gantry crane to roll on/off vehicles and taken to the Tipping Hall for unloading into the waste bunker. Third party waste is received by road, checked in, weighed and delivered into the reception hall by Roro’s, refuse collection vehicles and bulk transport vehicles.\n\nRECEPTION HALL\nA large reception hall allows for vehicles delivering waste to the site to manoeuvre and tip waste safely. The tipping hall is constructed above ground level as part of the sites flood protection strategy. HGV access to and egress from the Tipping Hall is via ramps on the south and north sides of the building. Air needed for combustion is drawn into the furnace from here (above the waste bunker) so that negative pressure is maintained in order to avoid odour and dust escaping the building. The tipping hall also includes an automatic dust and odour suppression system.\n\nWASTE BUNKER\nWaste vehicles reverse to a wheel stop and tip their loads into a large concrete bunker. The waste cranes operate over the waste bunker automatically to mix the waste to improve the homogeneity of the incinerator feedstock and feed the waste hoppers for each incineration line. Manual control by crane operators is carried out as and when required. Inspection of wastes received is carried out by the Day Operations team to look for unsuitable material and non-permitted wastes to be removed.\n\nCONTROL ROOM\nThe plant’s control room contains the Distributed Control System (DCS) which centralises the operation of the plant, and all equipment, including the grab cranes used to mix and load waste into the hoppers that feed the incineration lines. All on-site functions are monitored automatically and manually. Its systems verify in real time that equipment is functioning properly, continuously monitor the combustion processes, flue gases, and maximise the efficiency of the entire EfW process.\n\nGRATE AND BOILER\nWaste is lifted into the feed hoppers by the waste cranes. From here it is dropped into the furnace feed chute and then is introduced onto the grate system by hydraulic ram feeders for incineration. Auxiliary burners are used at start up and shut down, and can be used to help keep the furnace temperature above 850°C if required. The plant has two auxiliary burners per incineration line. The thermal energy released from the incineration of waste is used to convert water to super-heated steam through the boiler and 5th pass superheater. At high pressure, this steam drives a turbine to generate electricity.\n\nELECTRICITY GENERATION\nThe turbine drives a step down gearbox, which in turn drives a generator. Electricity is generated at 11kv, with electricity production of 312,000 MWh/annum (based on 39MW and 8,000 operating hours) and exporting approximately 296,000 MWh/annum to the national grid.\n\nINCINERATOR BOTTOM ASH (IBA)\nAsh left on the grate after incineration falls through the grate riddling's or off the end of the grate, is combined with boiler ash produced in the superheater and passes into the bottom ash extractor. The bottom ash extractor contains water to quench the ash and to provide an air seal for the furnace. The material is removed from the bottom ash extractor by a drag conveyor passing the material onto the vibrating fingers for removal of the oversize metal content. The oversize metal drops into a skip for collection and the remaining IBA material is dropped onto a conveyor for transport to the on site IBA recycling plant. Up to 100,000 tonnes per annum of IBA is produced and then processed on site by the removal of ferrous and non-ferrous metal, stabilised and separated into fraction sizes prior to the export from site of the recovered aggregates and metals for re-use.\n\nAIR-COOLED CONDENSERS\nAfter exiting the turbine, the steam is cooled and condensed back into water through air cooled condensers. This recovered water is collected in the condensate tank, treated and returned to the feedwater system to supply the boiler drum and to produce more steam, thus reducing consumption of mains water.\n\nEMISSION CONTROL\nThe flue gases from the incineration of waste are subject to a rigorous cleaning process involving ammonia for removal of Nitrogen Oxides (NOx) by selective non-catalytic reduction (SNCR). A DyNor (Dynamic NOx Reduction system) is used to optimise NOx reduction and reduce ammonia slip by altering the ammonia injection point into the furnace, dependent on the temperature profile, so the injection takes place where the SNCR reaction will be most effective. Lime and powdered activated carbon is injected into the reactor where the lime removes acidic gases such as sulphur dioxide (SO2) and hydrogen chloride (HCL), and the activated carbon removes heavy metals, dioxins and furans.\n \nAIR POLLUTION CONTROL RESIDUE (APCR)\nThe cleaned flue gases pass from the reactor through fine-fabric bag filters to remove solid particulates (dust). The bag filters become coated with lime and carbon and provides a further reaction surface increasing the effectiveness of the carbon and lime. When the pressure differential between the inside of the fabric filters becomes too great, a jet of compressed air is used to remove some of the reagents and ash caking the outside of the bag filters. Some of this material is recirculated back into the reactor where atomised water jets reactive the reagents for further use in the reactor.\nThe remaining APCR collected from the bag filter housing contains ash particles from the incineration process, spent lime used in the flue gas treatment, salts and carbon dust. It is transported to and stored in two sealed silo’s until it is tankered away for recovery.\n\nCONTINUOUS EMISSIONS MONITORING SYSTEM (CEMS)\nThe flue gases are drawn through the flue gas treatment system by large induction fans which then vent and discharge the treated flue gases to atmosphere via the stacks. A continuous emissions monitoring system is installed on each stack to monitor these emissions. The data is used to make any necessary adjustment to reagent dosing to ensure compliance with permit Emission Limit Values (ELV’s). This data is relayed automatically to the control room and is under close observation by the Operations Team. The CEMS is subject to QAL3 calibration tests (zero and span checks) performed monthly by the maintenance team, and an external contractor carries out annual servicing, calibration and emission testing as required by the permit.",null,null,null,null,null,null,null,null,null,"Include summary of key processes and procedures such as (but not limited to); waste reception, control rooms, grate, bed and boiler, energy & heat  generation, cooling systems, residue management, emission controls, health and safety systems, maintenance"]

{"sheet":"Contents","index":2,"n_rows":45,"n_cols":11,"rows_kept":45,"cut":false,"hidden":false,"merged":[[44,0,47,9],[37,1,37,6],[38,1,38,6],[39,1,39,6],[40,1,40,6],[41,1,41,6],[42,1,42,6],[36,1,36,6],[22,1,22,6],[23,1,23,6],[24,1,24,6],[27,1,27,6],[28,1,28,6],[29,1,29,6],[30,1,30,6],[31,1,31,6],[32,1,32,6],[35,1,35,6],[21,1,21,6],[9,1,9,6],[10,1,10,6],[11,1,11,6],[13,1,13,6],[14,1,14,6],[15,1,15,6],[16,1,16,6],[17,1,17,6],[18,1,18,6],[19,1,19,6],[20,1,20,6],[12,1,12,6],[4,10,7,14],[8,1,8,6],[3,1,3,6],[4,1,4,6],[5,1,5,6],[6,1,6,6],[7,1,7,6]]}
[{"$f":"+'Cover Page'!$B$29","v":"Annual Performance Report 2024"},null,null,null,{"$f":"+'Cover Page'!$B$33","v":"Severnside Energy Recovery Centre"}]
[]
["Contents",null,null,null,null,null,null,null,null,null,"Notes:"]
["Section","Subject",null,null,null,null,null,"Page ",null,null,"Section references and Page nos. to be inserted"]
[null,"Facility Information",null,null,null,null,null,null,null,null,"Sections and Subjects may require adjustment by individual operators to meet specific reporting requirements as defined in the sites Permit(s)"]
[null,"Operational Data"]
[null,"Operational Summary"]
[null,"Performance Form 1"]
[null,"Energy Form 1"]
[null,"Permit Compliance"]
[null,"Improvements"]
[null,"Public Liaison"]
[null,"Carbon dioxide and nitrous oxide emissions"]
[null,"Residue Quality "]
[null,"Emissions to Water"]
[null,"Emissions to Air (periodically monitored)"]
[null,"Emissions to Air (continuously monitored)"]
[null,"Hydrogen Chloride emissions"]
[null,"Sulphur Dioxide emissions"]
[null,"Oxides of Nitrogen emissions"]
[null,"Total Organic Carbon emissions"]
[null,"Particulate Matter emissions"]
[null,"Carbon Monoxide emissions"]
[null,"Ammonia emissions"]
[]
[]
["Version Control"]
["Section","Information",null,null,null,null,null,"Date"]
[1,"Original Document",null,null,null,null,null,"2025-01-27"]
[]
[]
[]
[]
[]
["Distribution"]
["Copy","Name, Role",null,null,null,null,null,"No."]
["EA","Paul Scotford, Site Regulatory Officer",null,null,null,null,null,1]
["SUEZ","David Appleby, Plant Manager",null,null,null,null,null,2]
[]
[]
[]
[]
[]
[]
["This report is required under the Industrial Emissions Directive’s Article 55(2) requirements on reporting and public information on waste incineration plants and co-incineration plants, which require the operator to produce an annual report on the functioning and monitoring of the plant and make it available to the public. "]

{"sheet":"Operational Data","index":3,"n_rows":65,"n_cols":10,"rows_kept":65,"cut":false,"hidden":false,"merged":[[5,9,7,9],[52,0,56,0],[33,1,38,1],[3,1,3,2],[7,1,19,1],[23,1,26,1],[28,1,29,1],[9,9,20,9],[21,9,25,9]]}
[{"$f":"+'Cover Page'!$B$29","v":"Annual Performance Report 2024"},null,null,null,{"$f":"+'Cover Page'!$B$33","v":"Severnside Energy Recovery Centre"}]
[]
["Operational Data"]
["Plant Size",467082,null,"tonnes pa",131,"MWth",39,"MWe",null,"Notes:"]
["No. of combustion lines",2,null,"No. of Turbines:",null,1,null,null,null,"* - RDF to include SRF "]
[null,null,null,null,null,null,null,null,null,"** - Combusted tonnage = tonnes delivered in period + (tonnes in bunker at start of period – tonnes in bunker at end of period), or equivalent calculation depending on plant type"]
["Waste types received","Unit","Q1","Q2","Q3","Q4","Year Total","%"]
["Household / Local Authority","tonnes",10981,13264,14069,20484,{"$f":"SUM(C8:F8)","v":58798},{"$f":"IF(G8>0,G8/$G$18,\"-\")","v":0.15029318392114963}]
["Commercial & Industrial ",null,5403,4202,3737,7759,{"$f":"SUM(C9:F9)","v":21101},5.3936128336341004E-2,null,"*** - CHP plants only"]
["Hazardous ",null,null,null,null,null,0,"-",null,"**** Availability Definition: 'the availability of a line is to be calculated by the number of hours the line reported Continuously Monitored emission levels to the Regulator through the calendar year divided by the total number of hours in that year. \n\nThe overall plant availability is calculated as the Mean of all lines in the plant. For clarity this includes periods of abnormal operation.'  \n\nRationale: The primary function of an Energy from Waste facility is the disposal of waste. It follows therefore that the availability of a plant is determined by the period of time a facility spends undertaking this activity."]
["Clinical",null,null,null,null,null,0,"-"]
["Waste wood (biomass) ",null,null,null,null,null,0,"-"]
["Refuse Derived Fuel * - H'hold/LA",null,85043,64787,82060,79433,{"$f":"SUM(C13:F13)","v":311323},0.79577068774250936]
["Refuse Derived Fuel *  - C&I",null,null,null,null,null,0,"-"]
["Other [Please specify]",null,null,null,null,null,0,"-"]
["Other [Please specify]",null,null,null,null,null,0,"-"]
["Other [Please specify]",null,null,null,null,null,0,"-"]
["Total waste received",null,{"$f":"SUM(C8:C17)","v":101427},{"$f":"SUM(D8:D17)","v":82253},{"$f":"SUM(E8:E17)","v":99866},{"$f":"SUM(F8:F17)","v":107676},391222]
["Rejected Waste ",null,6,4.4000000000000004,27.54,7,{"$f":"SUM(C19:F19)","v":44.94},{"$f":"IF(G19>0,G19/$G$18,\"-\")","v":1.1487084059689893E-4}]
["Unprocessed waste transferred out",null,330,361.54,178,153.16999999999999,{"$f":"SUM(C20:F20)","v":1022.7099999999999},{"$f":"IF(G20>0,G20/$G$18,\"-\")","v":2.6141423539575992E-3}]
["Total waste combusted **",null,{"$f":"C18-C19-C20","v":101091},{"$f":"D18-D19-D20","v":81887.060000000012},99660.46,107515.83,{"$f":"SUM(C21:F21)","v":390154.35000000003}]
[null,null,null,null,null,null,null,null,null,"Password for protected cells\nA password has been set to prevent accidental  editing of cells with formulae. \nIf you still need to make an edit for some reason then the password = 1234"]
["Energy Usage / Export","Unit","Q1","Q2","Q3","Q4","Year Total","KWh/te"]
["Power Generated","MWh",67982.792226195306,55831.781381543427,76703.809304789291,75843.235241774208,{"$f":"SUM(C24:F24)","v":276361.61815430224},{"$f":"IF(G24>0,G24*1000/$G$21,\"-\")","v":708.33919487070239}]
["Power Exported",null,61241.078299999994,50398.377699999997,68915.189200000008,68354.804000000004,{"$f":"SUM(C25:F25)","v":248909.4492},{"$f":"IF(G25>0,G25*1000/$G$21,\"-\")","v":637.97686530984458}]
["Power Used on site",null,6773.109286195313,5888.3750015434243,7957.4433447892843,7513.5126817741984,{"$f":"SUM(C26:F26)","v":28132.440314302221},{"$f":"IF(G26>0,G26*1000/$G$21,\"-\")","v":72.105925037878521}]
["Power Imported",null,31.39536,454.97131999999954,168.82324000000006,25.081440000000008,680.27135999999962,{"$f":"IF(G27>0,G27*1000/$G$21,\"-\")","v":1.7435954770208242}]
["Parasitic Load","%",{"$f":"IF(C24>0,1-C25/(C24+C27),\"-\")","v":9.9583771071464433E-2},{"$f":"IF(D24>0,1-D25/(D24+D27),\"-\")","v":0.10461386949725315},{"$f":"IF(E24>0,1-E25/(E24+E27),\"-\")","v":0.10351464599775395},{"$f":"IF(F24>0,1-F25/(F24+F27),\"-\")","v":9.9033602040878854E-2},{"$f":"IF(G24>0,1-G25/(G24+G27),\"-\")","v":0.10154580003631519}]
["Thermal Energy Produced ***","MWh",null,null,null,null,{"$f":"SUM(C29:F29)","v":0},{"$f":"IF(G29>0,G29*1000/$G$21,\"-\")","v":"-"}]
["Thermal Energy Exported ***",null,null,null,null,null,0,{"$f":"IF(G30>0,G30*1000/$G$21,\"-\")","v":"-"}]
["R1 value (if applicable)","R1"]
[]
["Waste Disposal & Recovery","Unit","Q1","Q2","Q3","Q4","Year Total","% inputs"]
["APC Residues - produced","tonnes",2173.3999999999996,1931.46,2539.12,2410.02,{"$f":"SUM(C34:F34)","v":9054},{"$f":"IF(G34>0,G34/$G$21,\"-\")","v":2.3206200315336736E-2}]
["IBA - produced",null,21487,12944,6497,26482,67410,{"$f":"IF(G35>0,G35/$G$21,\"-\")","v":0.17277777371955483}]
["Metals recycling",null,2888,2962,2637,2719,{"$f":"SUM(C36:F36)","v":11206},2.8721966062918429E-2]
["Other",null,0,0,0,0,{"$f":"SUM(C37:F37)","v":0},"-"]
["Other",null,0,0,0,0,0,"-"]
["Other",null,0,0,0,0,0,"-"]
[]
["Raw Material Usage","Unit","Q1","Q2","Q3","Q4","Year Total","kg or Ltr /te"]
["Mains Water","ltrs",16160000,11950000,13689000,13747000,{"$f":"SUM(C42:F42)","v":55546000},{"$f":"IF(G42>0,G42/$G$21,\"-\")","v":142.36929563902081}]
["Other Water","ltrs",0,0,0,0,0,{"$f":"IF(G43>0,G43/$G$21,\"-\")","v":"-"}]
["Ammonia","kgs",233878.4944474636,215057.55053299034,239430.56484783295,200454.44475516857,888821.05458345544,2.2781267326212187]
["Urea","kgs",null,null,null,null,{"$f":"SUM(C45:F45)","v":0},"-"]
["Activated Carbon","kgs",15322,13034,18571,19224,66151,0.16955084571016571]
["Lime / hydrated lime","kgs",747208,604597,902538,824988,3079331,7.8925968658301509]
["Fuel oil","ltrs",236112,152776,245723,332875,967486,2.4797519238219436]
["Gas","cuf",null,null,null,null,0]
["Other",null,null,null,null,null,0]
[]
["Summary ","Line/Unit","Q1","Q2","Q3","Q4","Year Total",null,"Hrs in year "]
["Availability of waste combustion by line, hrs ****",1,1977.33,1441.59,2113,2109.3200000000002,{"$f":"SUM(C53:F53)","v":7641.24},{"$f":"+G53/$I$53","v":0.86990437158469947},8784]
[null,2,1964.0900000000001,1500.25,2044.83,2013.0100000000002,7522.18,{"$f":"+G54/$I$53","v":0.85635018214936254}]
[null,3,0,0,0,0,0,0]
[null,4,0,0,0,0,0,0]
[null,5,0,0,0,0,{"$f":"SUM(C57:F57)","v":0},0]
["Overall Availability, mean avg. of all lines, hrs",null,{"$f":"AVERAGE(C53:C54)","v":1970.71},{"$f":"AVERAGE(D53:D54)","v":1470.92},2078.915,2061.165,{"$f":"AVERAGE(G53:G54)","v":7581.71},0.86312727686703095]
["Hours of turbine operations, hrs",1,2164.42,1501.83,2127.59,2196.92,7990.76,0.90969489981785068]
["Hours of turbine operations, hrs",2,0,0,0,0,0,0]
["Hours of heat / steam export",null,0,0,0,0,0,{"$f":"IF(B61>0,G60/I53,\"n/a\")","v":"n/a"}]
["Net Calorific Value of waste","MJ/kg",8.7917162080488307,9.0428785758021597,9.2723603602404641,9.0123192169201154,9.0918098931717672]
["Abnormal Events","qty.",2,0,0,0,2,{"$f":"IF(G63>0,\"yes\",\"no\")","v":"yes"}]
["Abnormal operation","hours",4.5,0,0,0,4.5,{"$f":"+(G64)/I53","v":5.1229508196721314E-4}]
["Permit Breaches","qty.",6,0,2,0,8,{"$f":"IF(G65>0,\"yes\",\"no\")","v":"yes"}]

{"sheet":"Operational Summary","index":4,"n_rows":87,"n_cols":14,"rows_kept":87,"cut":false,"hidden":false,"merged":[[58,4,58,11],[68,4,68,11],[4,0,26,11],[30,0,51,11],[4,13,13,16],[30,13,39,16],[54,4,54,11],[53,4,53,11],[73,4,73,11],[74,4,74,11],[69,4,69,11],[54,13,64,16],[63,4,63,11],[64,4,64,11],[65,4,65,11],[66,4,66,11],[67,4,67,11],[60,4,60,11],[61,4,61,11],[62,4,62,11],[59,4,59,11],[55,4,55,11],[56,4,56,11],[57,4,57,11],[85,4,85,11],[86,4,86,11],[53,0,53,3],[80,4,80,11],[81,4,81,11],[82,4,82,11],[83,4,83,11],[84,4,84,11],[75,4,75,11],[76,4,76,11],[77,4,77,11],[78,4,78,11],[79,4,79,11],[70,4,70,11],[71,4,71,11],[72,4,72,11]]}
[{"$f":"+'Cover Page'!$B$29","v":"Annual Performance Report 2024"},null,null,null,null,null,null,{"$f":"+'Cover Page'!$B$33","v":"Severnside Energy Recovery Centre"}]
[]
["Summary of Plant Operations and Maintenance during the reporting year",null,null,null,null,null,null,null,null,null,null,null,null,"Notes:"]
[]
["During the year the Plant received 391,220.63 tonnes of waste. Line 1 was in operation for 7,641 Hours  with a throughput of 194,900 tonnes and Line 2 was in operation for 7,522 hours with a throughput of 191,318 tonnes. The maximum possible operational hours for the year being 8,784 hrs. The steam turbine generator (STG) was in operation for 7,990 hours producing a gross electrical output of 276,361 MWh.\nThe plant had it annual outage with the year which is the routine maintenance of the plant, also during the year the plant was suffering with process Blockages  this was mainly due to oversize material within the feedstock.",null,null,null,null,null,null,null,null,null,null,null,null,"Include summary of key operational and/or maintenance activity undertaken in the year, such as any major component upgrades and/or replacements "]
[]
[]
[]
[]
[]
[]
[]
[]
[]
[]
[]
[]
[]
[]
[]
[]
[]
[]
[]
[]
[]
[]
[]
["Summary of Residue Handling for the reporting year"]
[]
["All IBA produced by the EfW plant is transferred to the IBA recycling plant by conveyor, the IBA recycling plant is operated by Blue Phoenix. The IBA is non-hazardous, as confirmed by two weekly analysis of the IBA in accordance with the Environment Agency's WM3 waste classification guidance,  and undergoes a mechanical separation process to remove all ferrous and non-ferrous metals leaving an IBA aggregate product. The metals are transferred to other operators for recycling and the IBA is applied to land in construction activities as a replacement for virgin (quarried) aggregate. This is in accordance with Environment Agency Regulatory Position Statement (RPS) 247 \"Using unbound IBAA in construction activities\".\n\nAir Pollution Control (APC) residues is the fly ash from the boiler mixed with dry sorbents such as carbon and lime in the flu gas treatment plant. The APC residue is hazardous and is therefore collected and further treated with waste acids and other industrials wastes to produce a filter cake. The filter cake is lime rich and can be applied to land for acidic soil remediation, such as colliery spoil sites, ensuring that recovery of process residues is greater than 99%.\n\nSome additional residues may be produced during cleaning of the boiler during cleaning activities in planned maintenance outages. This boiler ash, often mixed with grit blast residues from the cleaning process, is disposed of to landfill.",null,null,null,null,null,null,null,null,null,null,null,null,"Include in here a summary of residue handling regimes and destinations "]
[]
[]
[]
[]
[]
[]
[]
[]
[]
[]
[]
[]
[]
[]
[]
[]
[]
[]
[]
[]
[]
[]
[{"$f":"+'Cover Page'!C39","v":2024},null,null,null,"Plant shut-downs"]
["Start Date","End Date","Line","Duration","Reason for shut-down",null,null,null,null,null,null,null,null,"Provide a very brief reason for plant shut-down e.g. \"Shut-down prior to major outage\"; \"Emergency shut-down due to boiler tube leak\"\n\nThere is no need to include periods of hot-standby here (e.g. to clear feed chute hopper blockages).\n\nFor clinical waste incinerators which require regular shut-downs for boiler cleaning, there is no need to record these here. "]
["2024-01-05","2024-01-05","Line 2",19.079999999999998,"Bottom Ash Drop-off Chute Blockage (North)"]
["2024-01-19","2024-01-20","Line 1",16.25,"Bottom Ash Drop-off Chute Blockage (South)"]
["2024-01-22","2024-01-26","Line 1",105.75,"Baghouse Filter Cleaning Service (Planned)"]
["2024-01-26","2024-01-28","Line 1",45.25,"Loss of Baghouse Filter"]
["2024-01-27","2024-01-28","Line 2",15.66,"Bottom Ash Drop-off Chute Blockage (North)"]
["2024-02-05","2024-02-10","Line 2",135.75,"Baghouse Filter Replacement (Planned)"]
["2024-02-11","2024-02-12","Line 2",18.829999999999998,"Loss of Baghouse Filter"]
["2024-02-23","2024-02-23","Line 1",15.17,"Bottom Ash Drop-off Chute Blockage (South)"]
["2024-03-09","2024-03-11","Line 2",30.59,"Bottom Ash Drop-off Chute Blockage (South)"]
["2024-03-20","2024-03-21","Line 1",24.25,"Bottom Ash Drop-off Chute Blockage (South)"]
["2024-04-04","2024-04-04","Line 2",1.08,"Ram Feeder Table Blockage"]
["2024-04-25","2024-04-25","Line 1",7.5,"Bottom Ash Extractor Chain Conveyor Failure"]
["2024-05-02","2024-05-03","Line 1",20.5,"Bottom Ash Drop-off Chute Blockage (North)"]
["2024-05-22","2024-05-22","Line 1",5.5,"External Grid Network Fault"]
["2024-05-30","2024-05-30","Line 2",13.42,"Bottom Ash Drop-off Chute Blockage (South)"]
["2024-06-01","2024-06-30","Line 1",708.91,"Planned Annual Maintenance Outage"]
["2024-06-03","2024-07-06","Line 2",792.67,"Planned Annual Maintenance Outage"]
["2024-07-21","2024-07-21","Line 1",17.579999999999998,"Bottom Ash Drop-off Chute Blockage (North)"]
["2024-08-22","2024-08-23","Line 2",39.75,"Bottom Ash Drop-off Chute Blockage (North) and External Grid Network Fault"]
["2024-08-23","2024-08-23","Line 1",1,"External Grid Network Fault"]
["2024-09-03","2024-09-06","Line 1",76.42,"Bottom Ash Drop-off Chute Blockage and Burner FMS Fault"]
["2024-10-04","2024-10-06","Line 1",32.17,"Bottom Ash Extractor Chain Conveyor Failure"]
["2024-10-08","2024-10-08","Line 1",8.92,"Bottom Ash Drop-off Chute Blockage (North)"]
["2024-10-08","2024-10-09","Line 2",22.83,"Bottom Ash Drop-off Chute Blockage (North)"]
["2024-10-19","2024-10-19","Line 1",12.92,"Bottom Ash Drop-off Chute Blockage (North & South)"]
["2024-10-25","2024-10-26","Line 2",19.079999999999998,"Bottom Ash Drop-off Chute Blockage (South)"]
["2024-10-27","2024-10-27","Line 1",12.83,"Bottom Ash Extractor Chain Conveyor Failure"]
["2024-11-01","2024-11-02","Line 1",10.75,"Bottom Ash Drop-off Chute Blockage (North)"]
["2024-11-08","2024-11-09","Line 2",47.42,"Waste Feed Hopper Blockage"]
["2024-11-10","2024-11-13","Line 2",69.75,"Dust Probe Issues and Baghouse Filter Failure"]
["2024-11-29","2024-11-30","Line 1",21.09,"Bottom Ash Extractor Chain Conveyor Failure"]
["2024-12-17","2024-12-19","Line 2",35.909999999999997,"Bottom Ash Drop-off Chute Blockage (North & South)"]

{"sheet":"Perf. Form 1","index":5,"n_rows":54,"n_cols":10,"rows_kept":54,"cut":false,"hidden":false,"merged":[[47,0,47,1],[49,0,49,9],[50,0,51,9],[38,0,38,9],[39,0,40,9],[43,0,43,1],[43,2,43,9],[45,0,45,1],[46,0,46,1],[36,0,36,3],[36,4,36,5],[36,7,36,8],[37,0,37,3],[37,4,37,5],[37,7,37,8],[34,0,34,3],[34,4,34,5],[34,7,34,8],[35,0,35,3],[35,4,35,5],[35,7,35,8],[31,0,31,3],[31,7,31,8],[32,0,32,3],[32,4,32,5],[32,7,32,8],[33,0,33,3],[33,4,33,5],[33,7,33,8],[23,0,23,3],[23,4,23,5],[23,6,23,7],[23,8,23,9],[25,0,25,9],[26,0,28,9],[21,0,21,1],[21,2,21,3],[21,4,21,5],[21,6,21,7],[21,8,21,9],[22,0,22,3],[22,4,22,5],[22,6,22,7],[22,8,22,9],[19,0,19,1],[19,2,19,3],[19,4,19,5],[19,6,19,7],[19,8,19,9],[20,0,20,1],[20,2,20,3],[20,4,20,5],[20,6,20,7],[20,8,20,9],[17,0,17,1],[17,2,17,3],[17,4,17,5],[17,6,17,7],[17,8,17,9],[18,0,18,1],[18,2,18,3],[18,4,18,5],[18,6,18,7],[18,8,18,9],[15,0,15,1],[15,2,15,3],[15,4,15,5],[15,6,15,7],[15,8,15,9],[16,0,16,9],[13,0,13,1],[13,2,13,3],[13,4,13,5],[13,6,13,7],[13,8,13,9],[14,0,14,3],[14,4,14,5],[14,6,14,7],[14,8,14,9],[11,0,11,1],[11,2,11,3],[11,4,11,5],[11,6,11,7],[11,8,11,9],[12,0,12,1],[12,2,12,3],[12,4,12,5],[12,6,12,7],[12,8,12,9],[9,0,9,9],[10,0,10,1],[10,2,10,3],[10,4,10,5],[10,6,10,7],[10,8,10,9],[2,0,2,4],[2,6,2,8],[3,1,3,4],[5,3,5,4],[5,6,5,7],[8,0,8,1],[8,2,8,3],[8,4,8,5],[8,6,8,7],[8,8,8,9]]}
[{"$f":"+'Cover Page'!C39","v":2024}," Annual Reporting Performance Form 1"]
[]
[{"$f":"+'Cover Page'!B31","v":"Permit EPR/ZP3937KL"},null,null,null,null,"Operator: ",{"$f":"+'Cover Page'!B37","v":"SUEZ Recycling and Recovery UK Ltd"}]
["Facility:",{"$f":"+'Cover Page'!B33:I33","v":"Severnside Energy Recovery Centre"},null,null,null,"Form:","Performance 1"]
[]
["Reporting  Period from: ",null,null,"2024-01-01",null,"to:","2024-12-31"]
[]
[{"$f":"+A1","v":2024},"Annual Reporting of Waste Disposal and Recovery"]
["Waste Description",null,"Disposal Route(s)",null,"Disposal Tonnes",null,"Recovery Tonnes",null,"% / tonne of waste incinerated"]
["1) Hazardous Wastes"]
["APC Residues",null,"D09/R05",null,218.54,null,8835.4599999999991,null,{"$f":"IF((E11+G11)>0,(E11+G11)/'Operational Data'!$G$21, \"-\")","v":2.3206200315336736E-2}]
["IBA",null,null,null,null,null,null,null,{"$f":"IF((E12+G12)>0,(E12+G12)/'Operational Data'!$G$21, \"-\")","v":"-"}]
[null,null,null,null,null,null,null,null,{"$f":"IF((E13+G13)>0,(E13+G13)/'Operational Data'!$G$21, \"-\")","v":"-"}]
[null,null,null,null,null,null,null,null,{"$f":"IF((E14+G14)>0,(E14+G14)/'Operational Data'!$G$21, \"-\")","v":"-"}]
["Total Hazardous Waste",null,null,null,{"$f":"SUM(E11:F14)","v":218.54},null,{"$f":"SUM(G11:H14)","v":8835.4599999999991},null,{"$f":"IF((E15+G15)>0,(E15+G15)/'Operational Data'!$G$21, \"-\")","v":2.3206200315336736E-2}]
[]
["2) Non-Hazardous Wastes"]
["IBA",null,"R10",null,null,null,67410,null,{"$f":"IF((E18+G18)>0,(E18+G18)/'Operational Data'!$G$21, \"-\")","v":0.17277777371955483}]
["Ferrous Metal",null,"R04",null,null,null,6189,null,{"$f":"IF((E19+G19)>0,(E19+G19)/'Operational Data'!$G$21, \"-\")","v":1.5862952700642707E-2}]
["Process Water",null,"D09",null,257,null,null,null,{"$f":"IF((E20+G20)>0,(E20+G20)/'Operational Data'!$G$21, \"-\")","v":6.5871366037569489E-4}]
["Non-ferrous metal",null,"R04",null,null,null,5017,null,{"$f":"IF((E21+G21)>0,(E21+G21)/'Operational Data'!$G$21, \"-\")","v":1.2859013362275724E-2}]
[null,null,null,null,null,null,null,null,{"$f":"IF((E22+G22)>0,(E22+G22)/'Operational Data'!$G$21, \"-\")","v":"-"}]
["Total Non-Hazardous Waste",null,null,null,{"$f":"SUM(E18:F22)","v":257},null,{"$f":"SUM(G18:H22)","v":78616},null,{"$f":"IF((E23+G23)>0,(E23+G23)/'Operational Data'!$G$21, \"-\")","v":0.20215845344284894}]
["TOTAL WASTE",null,null,null,{"$f":"+E23+E15","v":475.53999999999996},null,{"$f":"+G23+G15","v":87451.459999999992},null,{"$f":"IF((E24+G24)>0,(E24+G24)/'Operational Data'!$G$21, \"-\")","v":0.22536465375818565}]
[]
["Operator’s comments :"]
[]
[]
[]
[]
[{"$f":"+A1","v":2024},"Annual Reporting of Water and Other Raw Material Usage"]
["Raw Material",null,null,null,"Usage",null,"Unit","Specific Usage",null,"Unit"]
["Mains Water",null,null,null,{"$f":"+'Operational Data'!G42/1000","v":55546},null,"m3",{"$f":"IF(E33>0,E33/'Operational Data'!$G$21,\"-\")","v":0.14236929563902079},null,"m3/te"]
["Total Water",null,null,null,{"$f":"+'Operational Data'!G43+'Operational Data'!G42/1000","v":55546},null,"m3",{"$f":"IF(E34>0,E34/'Operational Data'!$G$21,\"-\")","v":0.14236929563902079},null,"m3/te"]
["Urea / Ammonia",null,null,null,{"$f":"+'Operational Data'!G44","v":888821.05458345544},null,"kg",{"$f":"IF(E35>0,E35/'Operational Data'!$G$21,\"-\")","v":2.2781267326212187},null,"kg/te"]
["Activated Carbon",null,null,null,{"$f":"+'Operational Data'!G46","v":66151},null,"kg",{"$f":"IF(E36>0,E36/'Operational Data'!$G$21,\"-\")","v":0.16955084571016571},null,"kg/te"]
["Lime / hydrated lime / Sodium Bicarb.",null,null,null,{"$f":"+'Operational Data'!G47","v":3079331},null,"kg",{"$f":"IF(E37>0,E37/'Operational Data'!$G$21,\"-\")","v":7.8925968658301509},null,"kg/te"]
[]
["Operator’s comments :"]
[]
[]
[]
[{"$f":"+A31","v":2024},"Annual Reporting of other performance indicators "]
["Parameter",null,"Results by Line"]
[null,null,"A1","A2","A3","A4","A5",null,"Turbine 1","Turbine 2"]
["Operating hours for the year, hours",null,{"$f":"'Operational Data'!G53","v":7641.24},{"$f":"'Operational Data'!G54","v":7522.18},null,null,null,null,{"$f":"'Operational Data'!G59","v":7990.76}]
["Number of periods of abnormal operation, qty.",null,1,1]
["Cumulative hours of abnormal operation for this year, hours",null,2.5,2]
[]
["Operator’s comments :"]
[]
[]
[]
["Signed: ","Richard Watkins",null,null,null,null,"Date:","2025-01-27"]

{"sheet":"Energy Form 1","index":6,"n_rows":29,"n_cols":8,"rows_kept":29,"cut":false,"hidden":false,"merged":[[15,0,15,2],[15,3,15,4],[15,6,15,8],[17,0,17,8],[18,0,24,8],[13,0,13,2],[13,3,13,4],[13,6,13,8],[14,0,14,2],[14,3,14,4],[14,6,14,8],[11,0,11,2],[11,3,11,4],[11,6,11,8],[12,0,12,2],[12,3,12,4],[12,6,12,8],[9,0,9,2],[9,3,9,4],[9,6,9,8],[10,0,10,2],[10,3,10,4],[10,6,10,8],[2,6,2,8],[4,1,4,4],[6,3,6,4],[6,6,6,7],[8,0,8,2],[8,3,8,4],[8,6,8,8]]}
[{"$f":"+'Cover Page'!C39","v":2024}," Annual Reporting of Energy Usage/Export"]
[]
[{"$f":"+'Cover Page'!B31","v":"Permit EPR/ZP3937KL"},null,null,null,null,"Operator: ",{"$f":"+'Cover Page'!B37","v":"SUEZ Recycling and Recovery UK Ltd"}]
[]
["Facility:",{"$f":"+'Cover Page'!B33:I33","v":"Severnside Energy Recovery Centre"},null,null,null,"Form:","Energy 1"]
[]
["Reporting  Period from: ",null,null,"2024-01-01",null,"to:","2024-12-31"]
[]
["Energy Source",null,null,"Energy Usage",null,"Unit","Specific Usage (KWh/tonne incinerated"]
["Electricity Produced",null,null,{"$f":"+'Operational Data'!G24","v":276361.61815430224},null,"MWh",{"$f":"+'Operational Data'!H24","v":708.33919487070239}]
["Electricity Imported   ",null,null,{"$f":"+'Operational Data'!G27","v":680.27135999999962},null,"MWh",{"$f":"+'Operational Data'!H27","v":1.7435954770208242}]
["Electricity Exported",null,null,{"$f":"+'Operational Data'!G25","v":248909.4492},null,"MWh",{"$f":"+'Operational Data'!H25","v":637.97686530984458}]
["Gas Oil",null,null,{"$f":"('Operational Data'!G48*(10^-6))*845","v":817.52566999999999},null,"tonnes",{"$f":"(D13*42800*1000*(1/3600))/'Operational Data'!G21","v":24.911863354706782}]
["Steam/hot water exported",null,null,{"$f":"+'Operational Data'!G30","v":0},null,"GWh",{"$f":"+'Operational Data'!H30","v":"-"}]
[]
[]
[]
["Operator’s comments :"]
["Density value of 845 kg.m-3 used to convert gas oil litres to tonnes.\nNet Calorific Value (NCV) of 42,800 kJ.kg-1 used for gas oil"]
[]
[]
[]
[]
[]
[]
[]
[]
[]
["Signed: ","Richard Watkins",null,null,null,null,"Date:","2024-01-27"]

{"sheet":"Permit Compliance","index":7,"n_rows":31,"n_cols":12,"rows_kept":31,"cut":false,"hidden":false,"merged":[[25,0,25,8],[19,7,19,8],[19,1,19,2],[19,3,19,5],[21,3,21,5],[22,3,22,5],[23,3,23,5],[24,3,24,5],[21,1,21,2],[21,7,22,7],[21,8,22,8],[30,1,30,3],[30,4,30,6],[30,7,30,9],[8,11,20,11],[18,0,18,10],[28,1,28,3],[28,4,28,6],[28,7,28,9],[29,1,29,3],[29,4,29,6],[29,7,29,9],[22,1,22,2],[23,1,23,2],[14,0,14,1],[14,2,14,4],[24,1,24,2],[14,5,14,8],[15,0,15,1],[16,2,16,4],[16,5,16,8],[15,2,15,4],[15,5,15,8],[16,0,16,1],[13,5,13,8],[7,0,7,1],[7,2,7,8],[8,0,8,1],[8,2,8,4],[8,5,8,8],[27,0,27,8],[31,4,31,8],[9,0,9,1],[9,2,9,4],[9,5,9,8],[10,0,10,1],[10,2,10,4],[10,5,10,8],[11,0,11,1],[11,2,11,4],[11,5,11,8],[12,0,12,1],[12,2,12,4],[12,5,12,8],[13,0,13,1],[13,2,13,4]]}
[{"$f":"+'Cover Page'!$B$29","v":"Annual Performance Report 2024"},null,null,null,{"$f":"+'Cover Page'!$B$33","v":"Severnside Energy Recovery Centre"}]
[]
["Summary of Permit Compliance"]
[]
["Compliance with permit limits for continuously monitored pollutants"]
[]
["The plant met its emission limits as shown in the table below:"]
["Substance",null,"Percentage time compliant during operationNote 1",null,null,null,null,null,null,null,null,"Notes:"]
[null,null,"Half-hourly limit",null,null,"Daily limit",null,null,null,null,null,"Note 1: Please report to 2 decimal places, i.e. xx.xx%\n\nNote 2: Please enter into this table any permit non-compliances that the EA has given a CCS score for. Please also enter any other non-compliances which you have notified to the EA (e.g. ELV exceedances) but which have not yet been assessed by the EA. There is no need to enter any notifications which were subsequently assessed by the EA not to be permit breaches.  \n\nNote 3: Please enter information here (rather than just referencing the notifications that were sent to the EA) including where relevant the incineration line reference, pollutant and value of the measured result for any ELV exceedances.   \n\n"]
["Particulates",null,0.99980000000000002,null,null,1]
["Oxides of nitrogen",null,1,null,null,1]
["Sulphur dioxide",null,0.99990000000000001,null,null,1]
["Carbon monoxide",null,"100.00 % or \n100.00% 95% of 10-min averages",null,null,1]
["Total organic carbon",null,1,null,null,1]
["Hydrogen chloride",null,1,null,null,1]
["Hydrogen fluoride",null,1,null,null,1]
[null,null,1,null,null,1]
[]
["Summary of non-compliances under the permit Note 2"]
["Date","Summary of non-compliance Note 3",null,"Reason ",null,null,"Measures taken to prevent reoccurrence","CCS score if applicable*"]
[null,null,null,null,null,null,null,"Impact","Root cause"]
["2024-01-26","Breach - Elevated dust emissions on L1 during 2.5 hour period of Abnormal Operation. (2 x 1/2 hourly averages above limit)",null,"Bag filter failure after plant startup.",null,null,"Bag filters replaced and chamber cleaned.","CCS3","N/A"]
["2024-02-11","Breach - Elevated dust emissions on L2 during 2 hour period of Abnormal Operation. (4 x 1/2 hourly averages above limit)",null,"Loss of fabric filter in chamber 3 and damaged bag filter in chamber 5.",null,null,"Missing bag filter replaced, chamber cleaned and other bag filters replaced. "]
["2024-07-18","Breach - SO2 exceedance on L2.",null,"Issue thought to be waste related with limited mixing in waste bunker, due to electrical issues with crane 1 (waiting for spare parts). ",null,null,"Improving control over waste quality. Standardisation of waste bunker mixing regimes."]
["2024-09-16","Breach - Dioxins exceedance on L1.",null,"Following investigations, it is concluded that this result is likely to be erroneous data.",null,null,"Erroneous result. No operational issues identified and 2 retests both compliant."]
["*If the Environment Agency (EA) has given a Compliance Classification Scheme (CCS) score due to a permit non-compliance it should be entered here (CCS4 = No impact; CCS3 = Minor impact; CCS2 = Significant impact; CCS1 = Major impact). If the EA has not yet assessed a non-compliance which you have notified to them, these columns should be left blank. "]
[]
["Summary of any complaints received and actions to taken to resolve them."]
["Date","Summary of complaint [including Line/Reference]",null,null,"Reason (including whether substantiated by the operator or the EA)",null,null,"Measures taken to prevent reoccurrence"]
["2024-03-05","Noise complaint - Severn Beach, increase in noise levels",null,null,"Not substantiated ",null,null,"Unsubstantiated claim."]
["2024-03-30","Noise complaint - 1 mile from site, mechanical whirring noise, caller thinks this is coming from the turbines on the back on the building",null,null,"Not substantiated ",null,null,"EA Carried out site inspection and were not able to attribute noise to SERC."]

{"sheet":"Improvements","index":8,"n_rows":39,"n_cols":5,"rows_kept":39,"cut":false,"hidden":false,"merged":[[37,0,37,8],[38,0,47,8],[4,0,4,8],[5,0,13,8],[15,0,15,8],[16,0,24,8],[26,0,26,8],[27,0,35,8]]}
[{"$f":"+'Cover Page'!$B$29","v":"Annual Performance Report 2024"},null,null,null,{"$f":"+'Cover Page'!$B$33","v":"Severnside Energy Recovery Centre"}]
[]
["Summary of Plant Improvements"]
[]
["Summary of any efficiency improvements that have been completed within the year."]
["Replacement / upgrade of expansion joints on both lines during June 2024 outage (including reactor-BHF raw gas duct and ID fan discharge) to reduce excessive air ingress and hence the overall flue gas volume and ID fan power consumption."]
[]
[]
[]
[]
[]
[]
[]
[]
[]
["Summary of any permit improvement conditions that have been completed within the year and the resulting environmental benefits."]
["BREF Improvement Condition 1 - NOx Reduction Trials undertaken in Q1 2024 and final report submitted in May 2024.\n\nThe Dust Management Plan required by Improvement Condition 4 was submitted during November 2024."]
[]
[]
[]
[]
[]
[]
[]
[]
[]
["Summary of any changes to the plant or operating techniques which required a variation to the permit and a summary of the resulting environmental impact."]
["None required."]
[]
[]
[]
[]
[]
[]
[]
[]
[]
["Summary of any other improvements made to the plant or planned to be made and a summary of the resulting environmental benefits."]
["Comprehensive works carried out on BHF chamber isolation dampers on Line 1 in June 2024 to increase ability in being able to successfully isolate a chamber whilst online and carrying out the replacement of any failed filters, avoiding exceedances of the TPM ELVs. This scope of works is also planned on Line 2 in June 2025.\n\nInstrumentation installed on Line 2 in June 2024 (after successful trials on Line 1 in 2023) as part of an online dust monitoring system with a sensor installed around each BHF chamber, to allow for more accurate monitoring and quicker identification of any failed filters between the compartments, helping to reduce likelihood of exceedances of the TPM ELV.\n\nImplementation of a biogenic carbon monitoring system (Envea AMESA-B system) to be installed during Q1 2025 for more accurate reporting of biogenic CO2 emissions over periodic testing of waste."]

{"sheet":"Public Liasion","index":9,"n_rows":29,"n_cols":5,"rows_kept":29,"cut":false,"hidden":false,"merged":[[23,0,24,1],[23,2,24,8],[25,0,26,1],[25,2,26,8],[28,0,28,8],[17,0,18,1],[17,2,18,8],[19,0,20,1],[19,2,20,8],[21,0,22,1],[21,2,22,8],[16,0,16,1],[16,2,16,8],[5,0,5,1],[5,2,5,8],[6,0,7,1],[6,2,7,8],[8,0,9,1],[8,2,9,8],[10,0,11,1],[10,2,11,8],[12,0,13,1],[12,2,13,8],[15,0,15,8]]}
[{"$f":"+'Cover Page'!$B$29","v":"Annual Performance Report 2024"},null,null,null,{"$f":"+'Cover Page'!$B$33","v":"Severnside Energy Recovery Centre"}]
[]
["Details of Public & Stakeholder Liaison"]
[]
["Summary of events held during the reporting year."]
["Date",null,"Description"]
[]
[]
[]
[]
[]
[]
[]
[]
[]
["List of events planned for next year"]
["Date",null,"Description"]
[]
[]
[]
[]
[]
[]
[]
[]
[]
[]
[]
["If you wish to be involved in the public liaison programme, please contact _________________"]

{"sheet":"CO2 N2O","index":10,"n_rows":25,"n_cols":6,"rows_kept":25,"cut":false,"hidden":false,"merged":[[22,2,22,3],[25,1,25,3],[16,2,16,3],[4,0,4,3],[9,0,9,3],[17,0,17,3],[13,0,13,3],[12,0,12,1],[8,2,8,3],[11,2,11,3],[19,2,19,3]]}
[{"$f":"+'Cover Page'!$B$29","v":"Annual Performance Report 2024"},null,{"$f":"+'Cover Page'!$B$33","v":"Severnside Energy Recovery Centre"}]
[]
["Carbon dioxide emissions and biogenic content of waste inputs",null,null,null,null,"Notes:"]
[]
["Carbon dioxide emissions (all types of plant)"]
[null,"Annual mass of carbon dioxide released","tonnes ",358254.22]
[null,"Annual mass of carbon dioxide released per tonne of waste burned","t CO2 / t waste ",0.92800000000000005]
[null,"Annual mass of carbon dioxide released per MWh of energy exported","t CO2 / MWh export ",1.4390000000000001]
[null,"Description of how annual carbon dioxide mass emission has been calculated. \nSee Note 1","Calculated using the monthly average CEMS CO2 volume, Stack Flowrate and Operating Hours for each line.",null,null,"Note 1: All permits require operators to continuously monitor CO2 to EN14181 and flow to BS EN 16911-2 (unless otherwise agreed in writing). Operators must therefore use the results from these instruments to calculate their annual CO2 emissions. Where an operator does not have a flow meter calibrated to BS EN 16911-2, the averaged flow measurement from that year's periodic monitoring can be used instead. If the plant does not have calibrated CO2 CEMS, a suitably justified emissions factor can be used."]
["Nitrous oxide emissions (only plants which use ammonia or urea to abate NOx emissions)"]
[null,"Annual mass emissions of nitrous oxide","tonnes N2O",0.65810000000000002]
[null,"Description of how annual nitrous oxide mass emission has been calculated\nSee Note 2","Calculated using the monthly average CEMS N2O concentration, Stack Flowrate and Operating Hours for each line.",null,null,"Note 2: All permits require operators to continuously monitor N2O to EN14181 and flow to BS EN 16911-2, unless otherwise agreed in writing. Operators must therefore use the results from these instruments to calculate their annual N2O emissions. Where an operator does not have a flow meter calibrated to BS EN 16911-2, the averaged flow measurement from periodic monitoring can be used instead. If the plant does not have calibrated N2O CEMS, data from periodic monitoring or a suitably justified emissions factor can be used instead."]
["Total annual carbon dioxide + nitrous oxide emissions. \nSee Note 3. ",null,"tonnes CO2e",358428.62,null,"Note 3: Total annual carbon dioxide and nitrous oxide emissions reported as carbon dioxide equivalent where 1 tonne nitrous oxide is equivalent to 265 tonnes carbon dioxide."]
["Biogenic CO2 emissions (See Note 4)",null,null,null,null,"Note 4: Only plants combusting residual municipal waste, refuse derived fuel or solid recovered fuel need complete this section. "]
[null,"Percentage of total carbon dioxide emissions arising from biogenic waste","%",0.5575]
[null,"No. of measurements undertaken","Number",1]
[null,"Description of how percentage biogenic carbon dioxide emissions have been measured or calculated.\nSee Note 5","Calculated from the annual waste analysis, biogenic fraction for each waste type taken from DEFRA 2014 energy recovery for residual waste, a carbon based modelling approach.",null,null,"Note 5: The results from C14 sampling should be used if this is carried out at the plant (either via an installed sampler or from spot samples).  \nOtherwise, as an approximation (and in lieu of any more accurate metrics which may be developed in future), the measured or estimated biogenic fraction by net calorific value (see Note 6) can be assumed to be the same as the biogenic CO2 fraction of the total CO2 emissions from the plant. "]
["Biogenic fraction of waste feedstock (See Note 4)"]
[null,"Yearly average biogenic percentage of the waste by net calorific value (NCV)","%",0.48199999999999998]
[null,"Description of how biogenic percentage (by NCV) has been calculated or estimated. \nSee Note 6","See above for biogenic CO2 emissions calculation.",null,null,"Note 6: If C14 sampling is carried out at the plant, the methodology set out in the embedded document entitled \"Renewable Energy Association Energy Content of Fuels - Description of Method\" embedded below can be used to calculate the biogenic percentage by net calorific value. Otherwise, data from waste sampling or BIOMA software can be used; or if none of these are available, an estimated figure with justification or a figure assumed on the basis of up-to-date industry data can be used. "]
[null,"Yearly average biogenic percentage of the waste by mass","%",0.5575]
[null,"If waste sampling undertaken, no. of samples used to ascertain average biogenic percentages above","Number",1]
[null,"Description of how biogenic percentage (by mass) has been calculated or estimated. \nSee Note 7","See above for biogenic CO2 emissions calculation.",null,null,"Note 7: Where available, data from waste sampling should be used; otherwise, an estimated figure with justification can be used, or a figure assumed on the basis of up-to-date industry data. "]
[]
[null,"Comments:"]

{"sheet":"Residue Quality ","index":11,"n_rows":37,"n_cols":6,"rows_kept":37,"cut":false,"hidden":false,"merged":[[36,0,41,6],[32,3,32,4],[35,0,35,6],[27,0,28,1],[29,0,29,1],[30,0,30,1],[31,0,31,1],[32,0,32,1],[29,3,29,4],[30,3,30,4],[29,5,29,6],[30,5,30,6],[31,5,31,6],[32,5,32,6],[33,0,33,6],[20,0,21,1],[20,2,21,6],[22,0,23,1],[22,2,23,6],[31,3,31,4],[27,2,28,2],[28,3,28,4],[28,5,28,6],[27,3,27,6],[26,0,26,6],[5,0,6,6],[7,0,8,6],[9,0,10,6],[14,0,15,1],[14,2,15,6],[16,0,17,1],[16,2,17,6],[18,0,19,1],[18,2,19,6],[12,0,12,6],[13,0,13,1],[13,2,13,6]]}
[{"$f":"+'Cover Page'!$B$29","v":"Annual Performance Report 2024"},null,null,null,{"$f":"+'Cover Page'!$B$33","v":"Severnside Energy Recovery Centre"}]
[]
["Residue Quality Monitoring Requirements"]
[]
["Summary of monitoring undertaken and compliance"]
["The samples for the quarterly IBA analysis were undertaken on 18/01/2024, 10/04/2024, 01/08/2024 and 24/10/2024."]
[]
["There were no issues identified by the analysis and all results for TOC were below the permit limit. LOI analysis is not required as TOC analysis is provided."]
[]
[]
[]
[]
["Commentary on any specific events"]
["Date & Event",null,"Description"]
[]
[]
[]
[]
[]
[]
[]
[]
[]
[]
[]
[]
["Residue Quality Monitoring Results"]
["Parameter (unit) ",null,"Limit*","Normal Operation "]
[null,null,null,"Bottom ash  ",null,"APC Residues"]
["Loss on Ignition (average %)",null,"<5%","N/A"]
["Total Organic Carbon (average %)",null,"<3%",{"$f":"AVERAGE(1.06, 1.28, 0.388, 0.329)","v":0.76424999999999998}]
["No. of Assessments Undertaken",null,"---",4,null,4]
["No. of Hazardous Results",null,"---",0]
["* The permit will specify a limit of either 5% loss on ignition or 3% total organic carbon. If both are measured anyway, please enter the results here, even where the limit does not apply. "]
[]
["Comments :"]
["18/01/2024 IBA Sample - TOC = 1.06\n10/04/2024 IBA Sample - TOC = 1.28\n01/08/2024 IBA Sample - TOC = 0.388\n24/10/2024 IBA Sample - TOC = 0.329\nAverage = 0.76%"]

{"sheet":"Water","index":12,"n_rows":26,"n_cols":9,"rows_kept":26,"cut":false,"hidden":false,"merged":[[29,0,29,2],[29,3,29,4],[26,0,26,2],[26,3,26,4],[27,0,27,2],[27,3,27,4],[28,0,28,2],[28,3,28,4],[23,0,23,2],[23,3,23,4],[24,0,24,2],[24,3,24,4],[25,0,25,2],[25,3,25,4],[21,0,21,8],[22,0,22,2],[22,3,22,4],[14,0,15,1],[14,2,15,8],[16,0,17,1],[16,2,17,8],[18,0,19,1],[18,2,19,8],[5,0,6,8],[7,0,8,8],[9,0,10,8],[12,0,12,8],[13,0,13,1],[13,2,13,8]]}
[{"$f":"+'Cover Page'!$B$29","v":"Annual Performance Report 2024"},null,null,null,{"$f":"+'Cover Page'!$B$33","v":"Severnside Energy Recovery Centre"}]
[]
["Emissions to Water"]
[]
["Summary of monitoring undertaken and compliance"]
["W1 is the emission point from the Surface Water Management System to the Red Rhine via the swale.\nNo discharge was observed from this emission point during the reporting period."]
[]
["W2 is the emission point from the railhead drainage system to the Red Rhine.\nDischarge was only observed from this point on 3 occasions; 11/06/2024, 23/09/2024 & 30/09/2024."]
[]
["W3 is the emission point for overflow from the clean rainwater and firewater tanks to the Red Rhine.\nDischarge was sampled on the 23/09/2024 but no monitoring requirements or emission limits apply."]
[]
[]
["Commentary on any specific events"]
["Date & Event",null,"Description"]
["2024-06-11",null,"W2 rail drainage discharge to Red Rhine observed and sample taken"]
[]
["2024-09-23",null,"W2 rail drainage discharge and W3 clean rainwater tank and fire water tank overflow discharge to Red Rhine observed and samples taken."]
[]
["2024-09-30",null,"W2 rail drainage discharge to Red Rhine observed and sample taken"]
[]
[]
["Emissions to Water / Sewer"]
["Parameter",null,null,"Monitoring Frequency",null,"Limit","Target","Max.","Average"]
["Suspended solids",null,null,"W2 monthly",null,"30 mg/l",null,19,12]
["Oil",null,null,"W2 monthly",null,"5 mg/l",null,0.05,3.6999999999999998E-2]
["Oil",null,null,"W2 monthly",null,"No visible oil",null,0,0]

{"sheet":"Air (periodic)","index":13,"n_rows":40,"n_cols":11,"rows_kept":40,"cut":false,"hidden":false,"merged":[[13,10,14,12],[15,10,16,10],[15,11,16,11],[15,12,16,12],[18,3,18,4],[13,3,13,4],[14,3,14,4],[15,3,15,4],[16,3,16,4],[17,3,17,4],[21,3,21,4],[22,3,22,4],[23,3,23,4],[24,3,24,4],[31,3,31,4],[25,3,25,4],[26,3,26,4],[28,3,28,4],[38,0,38,9],[19,0,19,1],[20,0,20,1],[21,0,21,1],[34,3,34,4],[35,3,35,4],[33,0,33,1],[34,0,34,1],[35,0,35,1],[36,0,36,1],[24,0,24,1],[32,3,32,4],[27,3,27,4],[33,3,33,4],[19,3,19,4],[20,3,20,4],[39,0,40,9],[25,0,25,1],[26,0,26,1],[22,0,22,1],[23,0,23,1],[37,0,37,1],[27,0,27,1],[28,0,28,1],[29,0,29,1],[30,0,30,1],[31,0,31,1],[32,0,32,1],[37,3,37,4],[29,3,29,4],[30,3,30,4],[36,3,36,4],[16,0,16,1],[17,0,17,1],[18,0,18,1],[13,0,13,1],[14,0,14,1],[15,0,15,1],[12,0,12,1],[11,3,11,4],[12,3,12,4],[9,0,10,1],[9,5,9,9],[9,3,10,4],[9,2,10,2],[5,10,8,13],[9,10,11,13],[8,0,8,9],[5,0,6,9],[11,0,11,1]]}
[{"$f":"+'Cover Page'!$B$29","v":"Annual Performance Report 2024"},null,null,null,{"$f":"+'Cover Page'!$B$33","v":"Severnside Energy Recovery Centre"}]
[]
["Emissions to Air (periodically monitored)"]
[]
["Summary of monitoring undertaken, standards used and compliance",null,null,null,null,null,null,null,null,null,"Notes:"]
["The compliance monitoring visits were carried out during February and August 2024. A non-compliant dioxins result was identified in August 2024 on A1.",null,null,null,null,null,null,null,null,null,"Template may require adjustment for any bespoke monitoring requirements of permit - please also check that all default ELV values, reference periods and the stated oxygen reference value match those for your plant, and edit if necessary!"]
[]
[]
["Results of emissions to air that are periodically monitored - oxygen reference 11% "]
["Substance",null,"Ref. Period","Emission Limit Value",null,"Average",null,null,null,null,"User to add additional tables as necessary, depending on whether quarterly or bi-annual reporting is required for the compliance year"]
[null,null,null,null,null,"A1","A2","A3","A4","A5"]
["Hydrogen fluoride",null,"1 hr","1 mg/m3",null,0.122,{"$f":"AVERAGE(0.15, 0.12)","v":0.13500000000000001}]
["Cd and Tl and their compounds",null,"0.5-8hrs","0.02 mg/m3",null,{"$f":"AVERAGE(0.0013, 0.0015)","v":1.4E-3},{"$f":"AVERAGE(0.0013, 0.0015)","v":1.4E-3}]
["Hg and its compounds",null,"0.5-8hrs","0.02 mg/m3",null,{"$f":"AVERAGE(0.00072, 0.0014)","v":1.06E-3},{"$f":"AVERAGE(0.0035, 0.00028)","v":1.89E-3}]
["Sb, As, Pb, Cr, Co, Cu, Mn, Ni, V and their compounds",null,"0.5-8hrs","0.3 mg/m3",null,{"$f":"AVERAGE(0.011, 0.014)","v":1.2500000000000001E-2},{"$f":"AVERAGE(0.012, 0.0089)","v":1.0450000000000001E-2}]
["Dioxins & Furans (I-TEQ)",null,"6-8hrs","0.06 ng/m3",null,{"$f":"AVERAGE(0.0014, 0.5075)","v":0.25444999999999995},{"$f":"AVERAGE(0.0014, 0.007)","v":4.1999999999999997E-3}]
["PCBs (WHO-TEQ Humans / Mammals)",null,"6-8hrs","None set ng/m3",null,{"$f":"AVERAGE(0.0012, 0.011269)","v":6.2344999999999996E-3},{"$f":"AVERAGE(0.00011, 0.00231)","v":1.2099999999999999E-3}]
["PCBs (WHO-TEQ Fish)",null,"6-8hrs","None set ng/m3",null,{"$f":"AVERAGE(0.0000066, 0.000313)","v":1.5980000000000001E-4},{"$f":"AVERAGE(0.0000059, 0.00011)","v":5.7949999999999999E-5}]
["PCBs (WHO-TEQ Birds)",null,"6-8hrs","None set ng/m3",null,{"$f":"AVERAGE(0.00069, 0.008782)","v":4.7359999999999998E-3},{"$f":"AVERAGE(0.0006, 0.00415)","v":2.3749999999999999E-3}]
["Dioxins & Furans (WHO-TEQ Humans / Mammals)",null,"6-8hrs","None set ng/m3",null,{"$f":"AVERAGE(0.0013, 0.5036)","v":0.25245000000000001},{"$f":"AVERAGE(0.0013, 0.0062)","v":3.7499999999999999E-3}]
["Dioxins & Furans (WHO-TEQ Fish)",null,"6-8hrs","None set ng/m3",null,{"$f":"AVERAGE(0.0014, 0.4666)","v":0.23400000000000001},{"$f":"AVERAGE(0.0013, 0.0074)","v":4.3499999999999997E-3}]
["Dioxins & Furans (WHO-TEQ Birds)",null,"6-8hrs","None set ng/m3",null,{"$f":"AVERAGE(0.0037, 0.4936)","v":0.24864999999999998},{"$f":"AVERAGE(0.0038, 0.0144)","v":9.1000000000000004E-3}]
["Anthanthrene",null,"6-8hrs","None set µg/m3",null,1.4E-3,1.2999999999999999E-3]
["Benzo(a)anthracene",null,"6-8hrs","None set µg/m3",null,2.2000000000000001E-3,1.9E-3]
["Benzo(a)pyrene",null,"6-8hrs","None set µg/m3",null,1.4E-3,1.2999999999999999E-3]
["Benzo(b)fluoranthene",null,"6-8hrs","None set µg/m3",null,2.8999999999999998E-3,1.2999999999999999E-3]
["Benzo(b)naptho(2,1-d) thiophene",null,"6-8hrs","None set µg/m3",null,1.8E-3,2.5999999999999999E-3]
["Benzo(c)phenanthrene",null,"6-8hrs","None set µg/m3",null,1.9E-3,2.3E-3]
["Benzo(ghi)perylene",null,"6-8hrs","None set µg/m3",null,1.8E-3,1.2999999999999999E-3]
["Benzo(k)fluoranthene",null,"6-8hrs","None set µg/m3",null,1.4E-3,1.2999999999999999E-3]
["Cholanthrene",null,"6-8hrs","None set µg/m3",null,1.4E-3,1.2999999999999999E-3]
["Chrysene",null,"6-8hrs","None set µg/m3",null,4.7999999999999996E-3,3.5999999999999999E-3]
["Cyclopenta(cd)pyrene",null,"6-8hrs","None set µg/m3",null,1.4E-3,1.2999999999999999E-3]
["Dibenzo(ai)pyrene",null,"6-8hrs","None set µg/m3",null,1.4E-3,1.2999999999999999E-3]
["Dibenzo(ah)anthracene",null,"6-8hrs","None set µg/m3",null,1.4E-3,1.2999999999999999E-3]
["Fluoranthene",null,"6-8hrs","None set µg/m3",null,0.36080000000000001,0.38579999999999998]
["Indeno(123-cd) pyrene",null,"6-8hrs","None set µg/m3",null,1.4E-3,1.2999999999999999E-3]
["Naphthalene",null,"6-8hrs","None set µg/m3",null,0.26919999999999999,0.2487]
["Comments :"]
["The average result is calculated from the reported values for the H1 and H2 compliance monitoring campaigns. Where results are reported at the laboratory limit of detection the < qualifier is removed for calculation of the average emission as a conservative measure. Where the average has been calculated in this way the reported value is highlighted bold."]

{"sheet":"Air (CEMS)","index":14,"n_rows":28,"n_cols":14,"rows_kept":28,"cut":false,"hidden":false,"merged":[[28,0,29,12],[13,0,14,0],[5,0,6,12],[7,0,8,12],[10,0,10,12],[11,0,12,0],[11,2,12,2],[11,1,12,1],[11,3,11,4],[11,5,11,6],[11,7,11,8],[11,9,11,10],[11,11,11,12],[12,13,13,15],[14,13,15,13],[14,14,15,14],[14,15,15,15],[26,0,26,12]]}
[{"$f":"+'Cover Page'!$B$29","v":"Annual Performance Report 2024"},null,null,null,null,null,null,null,{"$f":"+'Cover Page'!$B$33","v":"Severnside Energy Recovery Centre"}]
[]
["Emissions to Air (continuously monitored)"]
[null,null,null,null,null,null,null,null,null,null,null,null,null,"Notes:"]
["Summary of monitoring undertaken, standards used and compliance",null,null,null,null,null,null,null,null,null,null,null,null,"Template may require adjustment for any bespoke monitoring requirements of permit"]
["The CEMS set up comprises a multigas analyser, FID analyser and oxygen probe for extractive sampling where flue gases are drawn continuously via a heated line to the analysers in the CEMS container for each incineration line. In situ sampling i.e. where the probes are installed directly into the flue gas flow in the stack is for the dust probes only. The set up for the duty analysers is mirrored by the standby analysers. The standby analysers can be switched between incineration Lines 1 and 2 as required. Continuous monitoring is provided by the CEMS as required by the permit. The CEMS are installed in accordance with EN14181 and relevant Environment Agency guidance.",null,null,null,null,null,null,null,null,null,null,null,null,"Please check that all default ELV values match those for your plant and edit if necessary!"]
[null,null,null,null,null,null,null,null,null,null,null,null,null,"Report to 1 decimal place"]
["SERC has an additional NOx emission limit value with a monthly average limit of 150 mg/Nm3."]
[]
[]
["Results of emissions to air that are continuously monitored (maximum and average values for each line) - oxygen reference 11%"]
["Substance","Reference Period","Emission Limit Value","A1",null,"A2",null,"A3",null,"A4",null,"A5"]
[null,null,null,"Max.","Avg.","Max.","Avg.","Max.","Avg.","Max.","Avg.","Max.","Avg."]
["Oxides of nitrogen","Daily mean","180 mg/m3 ",{"$f":"NOx!$O$19","v":141},{"$f":"NOx!$N$19","v":134.18272727272731},{"$f":"NOx!$O$34","v":139},{"$f":"NOx!$N$34","v":134.22916666666666}]
[null,"½ hourly mean","400 mg/m3 ",{"$f":"NOx!$M$19","v":232},{"$f":"NOx!$L$19","v":134.75},{"$f":"NOx!$M$34","v":235},{"$f":"NOx!$L$34","v":134.5}]
["Particulates","Daily mean","5 mg/m3",{"$f":"Particulates!$O$19","v":2.5},{"$f":"Particulates!$N$19","v":1.302727272727273},{"$f":"Particulates!$O$34","v":4.7},{"$f":"Particulates!$N$34","v":1.5508333333333331}]
[null,"½ hourly mean","30 mg/m3 ",{"$f":"Particulates!$M$19","v":391.7},{"$f":"Particulates!$L$19","v":1.6166666666666665},{"$f":"Particulates!$M$34","v":337.5},{"$f":"Particulates!$L$34","v":2.0916666666666668}]
["Total Organic Carbon ","Daily mean","10 mg/m3 ",{"$f":"TOC!$O$19","v":2},{"$f":"TOC!$N$19","v":0.21636363636363634},{"$f":"TOC!$O$34","v":0.5},{"$f":"TOC!$N$34","v":0.18749999999999997}]
[null,"½ hourly mean","20 mg/m3 ",{"$f":"TOC!$M$19","v":7},{"$f":"TOC!$L$19","v":0.20833333333333334},{"$f":"TOC!$M$34","v":5.0999999999999996},{"$f":"TOC!$L$34","v":0.20000000000000004}]
["Hydrogen chloride ","Daily mean","8 mg/m3 ",{"$f":"HCl!$O$19","v":4.9000000000000004},{"$f":"HCl!$N$19","v":0.98363636363636364},{"$f":"HCl!$O$34","v":6},{"$f":"HCl!$N$34","v":1.4075}]
[null,"½ hourly mean","60 mg/m3 ",{"$f":"HCl!$M$19","v":12.7},{"$f":"HCl!$L$19","v":0.94166666666666676},{"$f":"HCl!$M$34","v":15.6},{"$f":"HCl!$L$34","v":1.3916666666666666}]
["Sulphur dioxide","Daily mean","40 mg/m3 ",{"$f":"'SO2'!$O$19","v":21},{"$f":"'SO2'!$N$19","v":4.9481818181818191},{"$f":"'SO2'!$O$34","v":24},{"$f":"'SO2'!$N$34","v":6.5358333333333327}]
[null,"½ hourly mean","200 mg/m3 ",{"$f":"'SO2'!$M$19","v":152},{"$f":"'SO2'!$L$19","v":4.666666666666667},{"$f":"'SO2'!$M$34","v":211},{"$f":"'SO2'!$L$34","v":6.5}]
["Carbon monoxide ","Daily mean","50 mg/m3 ",{"$f":"'CO 95% 10 min'!Q20","v":6.9},{"$f":"'CO 95% 10 min'!P20","v":2.3609090909090913},{"$f":"'CO 95% 10 min'!Q35","v":4.9000000000000004},{"$f":"'CO 95% 10 min'!P35","v":1.3466666666666667}]
[null,"95%ile 10-min avg","150 mg/m3",{"$f":"MAX('CO 95% 10 min'!M8:M19)","v":5.45},{"$f":"'CO 95% 10 min'!M20","v":3.9066666666666667},{"$f":"MAX('CO 95% 10 min'!M23:M34)","v":4.8099999999999996},{"$f":"'CO 95% 10 min'!M35","v":3.2608333333333337}]
[" Ammonia","Daily mean","10 mg/m3 ",{"$f":"'NH3'!$O$19","v":3.9},{"$f":"'NH3'!$N$19","v":0.98727272727272741},{"$f":"'NH3'!$O$34","v":5.0999999999999996},{"$f":"'NH3'!$N$34","v":0.88416666666666688}]
[]
["Comments :"]

{"sheet":"HCl","index":15,"n_rows":79,"n_cols":17,"rows_kept":79,"cut":false,"hidden":false,"merged":[[12,16,15,18],[51,9,63,9],[66,9,78,9],[4,9,4,14],[4,1,4,3],[4,4,4,6],[48,0,51,6],[47,0,47,6],[6,9,18,9],[21,9,33,9],[36,9,48,9],[3,16,7,18],[9,16,11,18],[18,4,18,6]]}
[{"$f":"+'Cover Page'!$B$29","v":"Annual Performance Report 2024"},null,null,null,{"$f":"+'Cover Page'!$B$33","v":"Severnside Energy Recovery Centre"}]
[]
["Monitoring of Hydrogen Chloride emissions",null,null,"Whole Installation",null,null,"See  Notes in Cell Q3",null,null,{"$f":"+A3","v":"Monitoring of Hydrogen Chloride emissions"},null,null,null,"Per Combustion Line",null,null,"Notes:"]
[null,null,null,null,null,null,null,null,null,null,null,null,null,null,null,null,"User to add logic to complete Whole installation, Table A5:G18. From the data in Per Combustion Line, Table J6:O79, subject to No. of lines installed"]
[{"$f":"+'Cover Page'!C39","v":2024},"1/2 Hourly Reference Periods",null,null,"Daily Reference Periods"]
["mg/Nm3","1/2 hourly HCl ELV","Monthly mean of half-hourly averages","Highest half- hourly average","Daily HCl ELV","Monthly mean of  daily averages","Highest daily average",null,null,{"$f":"+A5","v":2024},"mg/Nm3","Monthly mean of half-hourly averages","Highest half- hourly average","Monthly mean of  daily averages","Highest daily average"]
["Jan",60,{"$f":"AVERAGE(L7,L22,L37,L52,L67)","v":0.45},{"$f":"MAX(M7,M22,M37,M52,M67)","v":11.8},8,{"$f":"AVERAGE(N7,N22,N37,N52,N67)","v":0.45499999999999996},{"$f":"MAX(O7,O22,O37,O52,O67)","v":0.9},null,null,"A1","Jan",0.5,2.8,0.5,0.9]
["Feb",60,{"$f":"AVERAGE(L8,L23,L38,L53,L68)","v":0.64999999999999991},{"$f":"MAX(M8,M23,M38,M53,M68)","v":4.2},8,{"$f":"AVERAGE(N8,N23,N38,N53,N68)","v":0.66999999999999993},{"$f":"MAX(O8,O23,O38,O53,O68)","v":3.2},null,null,null,"Feb",0.7,2.1,0.7,1.4]
["Mar",60,0.9,4.9000000000000004,8,0.9,2.8,null,null,null,"Mar",0.9,2.7,0.93,1.3,null,"Whole Installation table A5:G18:"]
["Apr",60,2.5,15.6,8,2.52,6,null,null,null,"Apr",1.4,12.7,1.4,3.4,null,"Mean: for 1/2 hourly and daily periods calculate mean of values across all operational combustion lines for the month"]
["May",60,1.1000000000000001,7.2,8,1.1200000000000001,4.3,null,null,null,"May",0.9,5.8,0.9,2.2000000000000002]
["Jun",60,0.5,2.1,8,0.55000000000000004,0.6,null,null,null,"Jun",0.5,1.1000000000000001,"N/A","N/A"]
["Jul",60,0.65,11,8,0.69500000000000006,1.9,null,null,null,"Jul",0.9,11,0.93,1.9,null,"Maximum: for 1/2 hourly and daily periods use the highest value across all operational combustion lines for the month"]
["Aug",60,1.1499999999999999,7.9,8,1.095,4.0999999999999996,null,null,null,"Aug",0.9,4.5,0.88,2.2000000000000002]
["Sep",60,1.55,12.5,8,1.54,4.5,null,null,null,"Sep",1,3.3,1,2.2000000000000002]
["Oct",60,1.55,8.4,8,1.585,4.7,null,null,null,"Oct",1.3,8.4,1.26,4.0999999999999996]
["Nov",60,0.64999999999999991,3.7,8,0.72,2.5,null,null,null,"Nov",0.6,2.7,0.66,1.3]
["Dec",60,2.35,9.5,8,2.2799999999999998,5,null,null,null,"Dec",1.7,9.5,1.66,4.9000000000000004]
[null,null,null,null,null,null,null,null,null,null,"Annual",{"$f":"AVERAGE(L7:L18)","v":0.94166666666666676},{"$f":"MAX(M7:M18)","v":12.7},{"$f":"AVERAGE(N7:N18)","v":0.98363636363636364},{"$f":"MAX(O7:O18)","v":4.9000000000000004}]
[]
[null,null,null,null,null,null,null,null,null,{"$f":"+A5","v":2024},"mg/Nm3","Monthly mean of half-hourly averages","Highest half- hourly average","Monthly mean of  daily averages","Highest daily average"]
[null,null,null,null,null,null,null,null,null,"A2","Jan",0.4,11.8,0.41,0.9]
[null,null,null,null,null,null,null,null,null,null,"Feb",0.6,4.2,0.64,3.2]
[null,null,null,null,null,null,null,null,null,null,"Mar",0.9,4.9000000000000004,0.87,2.8]
[null,null,null,null,null,null,null,null,null,null,"Apr",3.6,15.6,3.64,6]
[null,null,null,null,null,null,null,null,null,null,"May",1.3,7.2,1.34,4.3]
[null,null,null,null,null,null,null,null,null,null,"Jun",0.5,2.1,0.55000000000000004,0.6]
[null,null,null,null,null,null,null,null,null,null,"Jul",0.4,2.6,0.46,0.7]
[null,null,null,null,null,null,null,null,null,null,"Aug",1.4,7.9,1.31,4.0999999999999996]
[null,null,null,null,null,null,null,null,null,null,"Sep",2.1,12.5,2.08,4.5]
[null,null,null,null,null,null,null,null,null,null,"Oct",1.8,8.1,1.91,4.7]
[null,null,null,null,null,null,null,null,null,null,"Nov",0.7,3.7,0.78,2.5]
[null,null,null,null,null,null,null,null,null,null,"Dec",3,8.6,2.9,5]
[null,null,null,null,null,null,null,null,null,null,"Annual",{"$f":"AVERAGE(L22:L33)","v":1.3916666666666666},{"$f":"MAX(M22:M33)","v":15.6},{"$f":"AVERAGE(N22:N33)","v":1.4075},{"$f":"MAX(O22:O33)","v":6}]
[]
[null,null,null,null,null,null,null,null,null,{"$f":"+A5","v":2024},"mg/Nm3","Monthly mean of half-hourly averages","Highest half- hourly average","Monthly mean of  daily averages","Highest daily average"]
[null,null,null,null,null,null,null,null,null,"A3","Jan"]
[null,null,null,null,null,null,null,null,null,null,"Feb"]
[null,null,null,null,null,null,null,null,null,null,"Mar"]
[null,null,null,null,null,null,null,null,null,null,"Apr"]
[null,null,null,null,null,null,null,null,null,null,"May"]
[null,null,null,null,null,null,null,null,null,null,"Jun"]
[null,null,null,null,null,null,null,null,null,null,"Jul"]
[null,null,null,null,null,null,null,null,null,null,"Aug"]
[null,null,null,null,null,null,null,null,null,null,"Sep"]
[null,null,null,null,null,null,null,null,null,null,"Oct"]
[null,null,null,null,null,null,null,null,null,null,"Nov"]
["Comments :",null,null,null,null,null,null,null,null,null,"Dec"]
["No daily averages were recorded on Line 1 during June as the plant was shutdown for planned annual maintenance.",null,null,null,null,null,null,null,null,null,"Annual",{"$f":"AVERAGE(L37:L48)","v":{"$error":"#DIV/0!"}},{"$f":"MAX(M37:M48)","v":0},{"$f":"AVERAGE(N37:N48)","v":{"$error":"#DIV/0!"}},{"$f":"MAX(O37:O48)","v":0}]
[]
[null,null,null,null,null,null,null,null,null,{"$f":"+A5","v":2024},"mg/Nm3","Monthly mean of half-hourly averages","Highest half- hourly average","Monthly mean of  daily averages","Highest daily average"]
[null,null,null,null,null,null,null,null,null,"A4","Jan"]
[null,null,null,null,null,null,null,null,null,null,"Feb"]
[null,null,null,null,null,null,null,null,null,null,"Mar"]
[null,null,null,null,null,null,null,null,null,null,"Apr"]
[null,null,null,null,null,null,null,null,null,null,"May"]
[null,null,null,null,null,null,null,null,null,null,"Jun"]
[null,null,null,null,null,null,null,null,null,null,"Jul"]
[null,null,null,null,null,null,null,null,null,null,"Aug"]
[null,null,null,null,null,null,null,null,null,null,"Sep"]
[null,null,null,null,null,null,null,null,null,null,"Oct"]
[null,null,null,null,null,null,null,null,null,null,"Nov"]
[null,null,null,null,null,null,null,null,null,null,"Dec"]
[null,null,null,null,null,null,null,null,null,null,"Annual",{"$f":"AVERAGE(L52:L63)","v":{"$error":"#DIV/0!"}},{"$f":"MAX(M52:M63)","v":0},{"$f":"AVERAGE(N52:N63)","v":{"$error":"#DIV/0!"}},{"$f":"MAX(O52:O63)","v":0}]
[]
[null,null,null,null,null,null,null,null,null,{"$f":"+A5","v":2024},"mg/Nm3","Monthly mean of half-hourly averages","Highest half- hourly average","Monthly mean of  daily averages","Highest daily average"]
[null,null,null,null,null,null,null,null,null,"A5","Jan"]
[null,null,null,null,null,null,null,null,null,null,"Feb"]
[null,null,null,null,null,null,null,null,null,null,"Mar"]
[null,null,null,null,null,null,null,null,null,null,"Apr"]
[null,null,null,null,null,null,null,null,null,null,"May"]
[null,null,null,null,null,null,null,null,null,null,"Jun"]
[null,null,null,null,null,null,null,null,null,null,"Jul"]
[null,null,null,null,null,null,null,null,null,null,"Aug"]
[null,null,null,null,null,null,null,null,null,null,"Sep"]
[null,null,null,null,null,null,null,null,null,null,"Oct"]
[null,null,null,null,null,null,null,null,null,null,"Nov"]
[null,null,null,null,null,null,null,null,null,null,"Dec"]
[null,null,null,null,null,null,null,null,null,null,"Annual",{"$f":"AVERAGE(L67:L78)","v":{"$error":"#DIV/0!"}},{"$f":"MAX(M67:M78)","v":0},{"$f":"AVERAGE(N67:N78)","v":{"$error":"#DIV/0!"}},{"$f":"MAX(O67:O78)","v":0}]

{"sheet":"SO2","index":16,"n_rows":79,"n_cols":17,"rows_kept":79,"cut":false,"hidden":false,"merged":[[3,16,7,18],[9,16,11,18],[12,16,15,18],[66,9,78,9],[4,1,4,3],[4,4,4,6],[4,9,4,14],[6,9,18,9],[21,9,33,9],[36,9,48,9],[47,0,47,6],[48,0,51,6],[51,9,63,9],[18,4,18,6]]}
[{"$f":"+'Cover Page'!$B$29","v":"Annual Performance Report 2024"},null,null,null,{"$f":"+'Cover Page'!$B$33","v":"Severnside Energy Recovery Centre"}]
[]
["Monitoring of Sulphur dioxide emissions",null,null,"Whole Installation",null,null,"See  Notes in Cell Q3",null,null,{"$f":"+A3","v":"Monitoring of Sulphur dioxide emissions"},null,null,null,"Per Combustion Line",null,null,"Notes:"]
[null,null,null,null,null,null,null,null,null,null,null,null,null,null,null,null,"User to add logic to complete Whole installation, Table A5:G18. From the data in Per Combustion Line, Table J6:O79, subject to No. of lines installed"]
[{"$f":"+'Cover Page'!C39","v":2024},"1/2 Hourly Reference Periods",null,null,"Daily Reference Periods"]
["mg/Nm3","1/2 hourly SO2 ELV","Monthly mean of half-hourly averages","Highest half- hourly average","Daily SO2 ELV","Monthly mean of  daily averages","Highest daily average",null,null,{"$f":"+A5","v":2024},"mg/Nm3","Monthly mean of half-hourly averages","Highest half- hourly average","Monthly mean of  daily averages","Highest daily average"]
["Jan",200,{"$f":"AVERAGE(L7,L22,L37,L52,L67)","v":3},{"$f":"MAX(M7,M22,M37,M52,M67)","v":76},40,{"$f":"AVERAGE(N7,N22,N37,N52,N67)","v":3.1899999999999995},{"$f":"MAX(O7,O22,O37,O52,O67)","v":12},null,null,"A1","Jan",4,38,4.2699999999999996,12]
["Feb",200,{"$f":"AVERAGE(L8,L23,L38,L53,L68)","v":7},{"$f":"MAX(M8,M23,M38,M53,M68)","v":66},40,{"$f":"AVERAGE(N8,N23,N38,N53,N68)","v":6.7750000000000004},{"$f":"MAX(O8,O23,O38,O53,O68)","v":21},null,null,null,"Feb",8,42,7.64,21]
["Mar",200,8,121,40,7.97,18,null,null,null,"Mar",10,105,10.18,18,null,"Whole Installation table A5:G18:"]
["Apr",200,5,127,40,4.9850000000000003,18,null,null,null,"Apr",6,82,6,17,null,"Mean: for 1/2 hourly and daily periods calculate mean of values across all operational combustion lines for the month"]
["May",200,4.5,90,40,4.4649999999999999,11,null,null,null,"May",5,78,5,11]
["Jun",200,3,23,40,4,5,null,null,null,"Jun",2,15,"N/A","N/A"]
["Jul",200,9.5,211,40,9.8049999999999997,24,null,null,null,"Jul",6,140,6.37,16,null,"Maximum: for 1/2 hourly and daily periods use the highest value across all operational combustion lines for the month"]
["Aug",200,7.5,88,40,7.8250000000000002,21,null,null,null,"Aug",5,72,5.0999999999999996,14]
["Sep",200,6,143,40,6.02,20,null,null,null,"Sep",4,59,3.77,11]
["Oct",200,5.5,152,40,5.51,17,null,null,null,"Oct",3,152,3.35,8]
["Nov",200,5,148,40,4.75,18,null,null,null,"Nov",2,60,1.62,8]
["Dec",200,3,74,40,3.1349999999999998,11,null,null,null,"Dec",1,58,1.1299999999999999,8]
[null,null,null,null,null,null,null,null,null,null,"Annual",{"$f":"AVERAGE(L7:L18)","v":4.666666666666667},{"$f":"MAX(M7:M18)","v":152},{"$f":"AVERAGE(N7:N18)","v":4.9481818181818191},{"$f":"MAX(O7:O18)","v":21}]
[]
[null,null,null,null,null,null,null,null,null,{"$f":"+A5","v":2024},"mg/Nm3","Monthly mean of half-hourly averages","Highest half- hourly average","Monthly mean of  daily averages","Highest daily average"]
[null,null,null,null,null,null,null,null,null,"A2","Jan",2,76,2.11,6]
[null,null,null,null,null,null,null,null,null,null,"Feb",6,66,5.91,14]
[null,null,null,null,null,null,null,null,null,null,"Mar",6,121,5.76,14]
[null,null,null,null,null,null,null,null,null,null,"Apr",4,127,3.97,18]
[null,null,null,null,null,null,null,null,null,null,"May",4,90,3.93,11]
[null,null,null,null,null,null,null,null,null,null,"Jun",4,23,4,5]
[null,null,null,null,null,null,null,null,null,null,"Jul",13,211,13.24,24]
[null,null,null,null,null,null,null,null,null,null,"Aug",10,88,10.55,21]
[null,null,null,null,null,null,null,null,null,null,"Sep",8,143,8.27,20]
[null,null,null,null,null,null,null,null,null,null,"Oct",8,45,7.67,17]
[null,null,null,null,null,null,null,null,null,null,"Nov",8,148,7.88,18]
[null,null,null,null,null,null,null,null,null,null,"Dec",5,74,5.14,11]
[null,null,null,null,null,null,null,null,null,null,"Annual",{"$f":"AVERAGE(L22:L33)","v":6.5},{"$f":"MAX(M22:M33)","v":211},{"$f":"AVERAGE(N22:N33)","v":6.5358333333333327},{"$f":"MAX(O22:O33)","v":24}]
[]
[null,null,null,null,null,null,null,null,null,{"$f":"+A5","v":2024},"mg/Nm3","Monthly mean of half-hourly averages","Highest half- hourly average","Monthly mean of  daily averages","Highest daily average"]
[null,null,null,null,null,null,null,null,null,"A3","Jan"]
[null,null,null,null,null,null,null,null,null,null,"Feb"]
[null,null,null,null,null,null,null,null,null,null,"Mar"]
[null,null,null,null,null,null,null,null,null,null,"Apr"]
[null,null,null,null,null,null,null,null,null,null,"May"]
[null,null,null,null,null,null,null,null,null,null,"Jun"]
[null,null,null,null,null,null,null,null,null,null,"Jul"]
[null,null,null,null,null,null,null,null,null,null,"Aug"]
[null,null,null,null,null,null,null,null,null,null,"Sep"]
[null,null,null,null,null,null,null,null,null,null,"Oct"]
[null,null,null,null,null,null,null,null,null,null,"Nov"]
["Comments :",null,null,null,null,null,null,null,null,null,"Dec"]
["No daily averages were recorded on Line 1 during June as the plant was shutdown for planned annual maintenance.",null,null,null,null,null,null,null,null,null,"Annual",{"$f":"AVERAGE(L37:L48)","v":{"$error":"#DIV/0!"}},{"$f":"MAX(M37:M48)","v":0},{"$f":"AVERAGE(N37:N48)","v":{"$error":"#DIV/0!"}},{"$f":"MAX(O37:O48)","v":0}]
[]
[null,null,null,null,null,null,null,null,null,{"$f":"+A5","v":2024},"mg/Nm3","Monthly mean of half-hourly averages","Highest half- hourly average","Monthly mean of  daily averages","Highest daily average"]
[null,null,null,null,null,null,null,null,null,"A4","Jan"]
[null,null,null,null,null,null,null,null,null,null,"Feb"]
[null,null,null,null,null,null,null,null,null,null,"Mar"]
[null,null,null,null,null,null,null,null,null,null,"Apr"]
[null,null,null,null,null,null,null,null,null,null,"May"]
[null,null,null,null,null,null,null,null,null,null,"Jun"]
[null,null,null,null,null,null,null,null,null,null,"Jul"]
[null,null,null,null,null,null,null,null,null,null,"Aug"]
[null,null,null,null,null,null,null,null,null,null,"Sep"]
[null,null,null,null,null,null,null,null,null,null,"Oct"]
[null,null,null,null,null,null,null,null,null,null,"Nov"]
[null,null,null,null,null,null,null,null,null,null,"Dec"]
[null,null,null,null,null,null,null,null,null,null,"Annual",{"$f":"AVERAGE(L52:L63)","v":{"$error":"#DIV/0!"}},{"$f":"MAX(M52:M63)","v":0},{"$f":"AVERAGE(N52:N63)","v":{"$error":"#DIV/0!"}},{"$f":"MAX(O52:O63)","v":0}]
[]
[null,null,null,null,null,null,null,null,null,{"$f":"+A5","v":2024},"mg/Nm3","Monthly mean of half-hourly averages","Highest half- hourly average","Monthly mean of  daily averages","Highest daily average"]
[null,null,null,null,null,null,null,null,null,"A5","Jan"]
[null,null,null,null,null,null,null,null,null,null,"Feb"]
[null,null,null,null,null,null,null,null,null,null,"Mar"]
[null,null,null,null,null,null,null,null,null,null,"Apr"]
[null,null,null,null,null,null,null,null,null,null,"May"]
[null,null,null,null,null,null,null,null,null,null,"Jun"]
[null,null,null,null,null,null,null,null,null,null,"Jul"]
[null,null,null,null,null,null,null,null,null,null,"Aug"]
[null,null,null,null,null,null,null,null,null,null,"Sep"]
[null,null,null,null,null,null,null,null,null,null,"Oct"]
[null,null,null,null,null,null,null,null,null,null,"Nov"]
[null,null,null,null,null,null,null,null,null,null,"Dec"]
[null,null,null,null,null,null,null,null,null,null,"Annual",{"$f":"AVERAGE(L67:L78)","v":{"$error":"#DIV/0!"}},{"$f":"MAX(M67:M78)","v":0},{"$f":"AVERAGE(N67:N78)","v":{"$error":"#DIV/0!"}},{"$f":"MAX(O67:O78)","v":0}]

{"sheet":"NOx","index":17,"n_rows":79,"n_cols":17,"rows_kept":79,"cut":false,"hidden":false,"merged":[[3,16,7,18],[9,16,11,18],[12,16,15,18],[66,9,78,9],[4,1,4,3],[4,4,4,6],[4,9,4,14],[6,9,18,9],[21,9,33,9],[36,9,48,9],[47,0,47,6],[48,0,51,6],[51,9,63,9],[18,4,18,6]]}
[{"$f":"+'Cover Page'!$B$29","v":"Annual Performance Report 2024"},null,null,null,{"$f":"+'Cover Page'!$B$33","v":"Severnside Energy Recovery Centre"}]
[]
["Monitoring of Oxides of Nitrogen emissions",null,null,"Whole Installation",null,null,"See  Notes in Cell Q3",null,null,{"$f":"+A3","v":"Monitoring of Oxides of Nitrogen emissions"},null,null,null,"Per Combustion Line",null,null,"Notes:"]
[null,null,null,null,null,null,null,null,null,null,null,null,null,null,null,null,"User to add logic to complete Whole installation, Table A5:G18. From the data in Per Combustion Line, Table J6:O79, subject to No. of lines installed"]
[{"$f":"+'Cover Page'!C39","v":2024},"1/2 Hourly Reference Periods",null,null,"Daily Reference Periods"]
["mg/Nm3","1/2 hourly NOx ELV","Monthly mean of half-hourly averages","Highest half- hourly average","Daily NOx ELV","Monthly mean of  daily averages","Highest daily average",null,null,{"$f":"+A5","v":2024},"mg/Nm3","Monthly mean of half-hourly averages","Highest half- hourly average","Monthly mean of  daily averages","Highest daily average"]
["Jan",400,{"$f":"AVERAGE(L7,L22,L37,L52,L67)","v":134.5},{"$f":"MAX(M7,M22,M37,M52,M67)","v":171},180,{"$f":"AVERAGE(N7,N22,N37,N52,N67)","v":134.04500000000002},{"$f":"MAX(O7,O22,O37,O52,O67)","v":136},null,null,"A1","Jan",134,165,133.91,136]
["Feb",400,{"$f":"AVERAGE(L8,L23,L38,L53,L68)","v":135.5},{"$f":"MAX(M8,M23,M38,M53,M68)","v":178},180,{"$f":"AVERAGE(N8,N23,N38,N53,N68)","v":135.45499999999998},{"$f":"MAX(O8,O23,O38,O53,O68)","v":137},null,null,null,"Feb",136,178,135.5,137]
["Mar",400,127,181,180,126.63499999999999,136,null,null,null,"Mar",127,181,126.86,136,null,"Whole Installation table A5:G18:"]
["Apr",400,135,191,180,134.815,137,null,null,null,"Apr",135,172,134.76,137,null,"Mean: for 1/2 hourly and daily periods calculate mean of values across all operational combustion lines for the month"]
["May",400,134.5,235,180,134.255,141,null,null,null,"May",134,232,134.04,141]
["Jun",400,137,165,180,135,136,null,null,null,"Jun",139,153,"N/A","N/A"]
["Jul",400,135.5,220,180,135.47499999999999,141,null,null,null,"Jul",136,220,135.47,141,null,"Maximum: for 1/2 hourly and daily periods use the highest value across all operational combustion lines for the month"]
["Aug",400,136,225,180,135.405,139,null,null,null,"Aug",135,225,135.33000000000001,136]
["Sep",400,135.5,197,180,135.35500000000002,138,null,null,null,"Sep",136,197,135.38,138]
["Oct",400,135,194,180,135.55000000000001,138,null,null,null,"Oct",135,194,135.77000000000001,138]
["Nov",400,136,187,180,135.35500000000002,136,null,null,null,"Nov",136,187,135.38,136]
["Dec",400,134,190,180,133.53500000000003,137,null,null,null,"Dec",134,190,133.61000000000001,137]
[null,null,null,null,null,null,null,null,null,null,"Annual",{"$f":"AVERAGE(L7:L18)","v":134.75},{"$f":"MAX(M7:M18)","v":232},{"$f":"AVERAGE(N7:N18)","v":134.18272727272731},{"$f":"MAX(O7:O18)","v":141}]
[]
[null,null,null,null,null,null,null,null,null,{"$f":"+A5","v":2024},"mg/Nm3","Monthly mean of half-hourly averages","Highest half- hourly average","Monthly mean of  daily averages","Highest daily average"]
[null,null,null,null,null,null,null,null,null,"A2","Jan",135,171,134.18,136]
[null,null,null,null,null,null,null,null,null,null,"Feb",135,171,135.41,137]
[null,null,null,null,null,null,null,null,null,null,"Mar",127,174,126.41,136]
[null,null,null,null,null,null,null,null,null,null,"Apr",135,191,134.87,137]
[null,null,null,null,null,null,null,null,null,null,"May",135,235,134.47,139]
[null,null,null,null,null,null,null,null,null,null,"Jun",135,165,135,136]
[null,null,null,null,null,null,null,null,null,null,"Jul",135,180,135.47999999999999,138]
[null,null,null,null,null,null,null,null,null,null,"Aug",137,221,135.47999999999999,139]
[null,null,null,null,null,null,null,null,null,null,"Sep",135,188,135.33000000000001,136]
[null,null,null,null,null,null,null,null,null,null,"Oct",135,190,135.33000000000001,136]
[null,null,null,null,null,null,null,null,null,null,"Nov",136,175,135.33000000000001,136]
[null,null,null,null,null,null,null,null,null,null,"Dec",134,182,133.46,137]
[null,null,null,null,null,null,null,null,null,null,"Annual",{"$f":"AVERAGE(L22:L33)","v":134.5},{"$f":"MAX(M22:M33)","v":235},{"$f":"AVERAGE(N22:N33)","v":134.22916666666666},{"$f":"MAX(O22:O33)","v":139}]
[]
[null,null,null,null,null,null,null,null,null,{"$f":"+A5","v":2024},"mg/Nm3","Monthly mean of half-hourly averages","Highest half- hourly average","Monthly mean of  daily averages","Highest daily average"]
[null,null,null,null,null,null,null,null,null,"A3","Jan"]
[null,null,null,null,null,null,null,null,null,null,"Feb"]
[null,null,null,null,null,null,null,null,null,null,"Mar"]
[null,null,null,null,null,null,null,null,null,null,"Apr"]
[null,null,null,null,null,null,null,null,null,null,"May"]
[null,null,null,null,null,null,null,null,null,null,"Jun"]
[null,null,null,null,null,null,null,null,null,null,"Jul"]
[null,null,null,null,null,null,null,null,null,null,"Aug"]
[null,null,null,null,null,null,null,null,null,null,"Sep"]
[null,null,null,null,null,null,null,null,null,null,"Oct"]
[null,null,null,null,null,null,null,null,null,null,"Nov"]
["Comments :",null,null,null,null,null,null,null,null,null,"Dec"]
["No daily averages were recorded on Line 1 during June as the plant was shutdown for planned annual maintenance.",null,null,null,null,null,null,null,null,null,"Annual",{"$f":"AVERAGE(L37:L48)","v":{"$error":"#DIV/0!"}},{"$f":"MAX(M37:M48)","v":0},{"$f":"AVERAGE(N37:N48)","v":{"$error":"#DIV/0!"}},{"$f":"MAX(O37:O48)","v":0}]
[]
[null,null,null,null,null,null,null,null,null,{"$f":"+A5","v":2024},"mg/Nm3","Monthly mean of half-hourly averages","Highest half- hourly average","Monthly mean of  daily averages","Highest daily average"]
[null,null,null,null,null,null,null,null,null,"A4","Jan"]
[null,null,null,null,null,null,null,null,null,null,"Feb"]
[null,null,null,null,null,null,null,null,null,null,"Mar"]
[null,null,null,null,null,null,null,null,null,null,"Apr"]
[null,null,null,null,null,null,null,null,null,null,"May"]
[null,null,null,null,null,null,null,null,null,null,"Jun"]
[null,null,null,null,null,null,null,null,null,null,"Jul"]
[null,null,null,null,null,null,null,null,null,null,"Aug"]
[null,null,null,null,null,null,null,null,null,null,"Sep"]
[null,null,null,null,null,null,null,null,null,null,"Oct"]
[null,null,null,null,null,null,null,null,null,null,"Nov"]
[null,null,null,null,null,null,null,null,null,null,"Dec"]
[null,null,null,null,null,null,null,null,null,null,"Annual",{"$f":"AVERAGE(L52:L63)","v":{"$error":"#DIV/0!"}},{"$f":"MAX(M52:M63)","v":0},{"$f":"AVERAGE(N52:N63)","v":{"$error":"#DIV/0!"}},{"$f":"MAX(O52:O63)","v":0}]
[]
[null,null,null,null,null,null,null,null,null,{"$f":"+A5","v":2024},"mg/Nm3","Monthly mean of half-hourly averages","Highest half- hourly average","Monthly mean of  daily averages","Highest daily average"]
[null,null,null,null,null,null,null,null,null,"A5","Jan"]
[null,null,null,null,null,null,null,null,null,null,"Feb"]
[null,null,null,null,null,null,null,null,null,null,"Mar"]
[null,null,null,null,null,null,null,null,null,null,"Apr"]
[null,null,null,null,null,null,null,null,null,null,"May"]
[null,null,null,null,null,null,null,null,null,null,"Jun"]
[null,null,null,null,null,null,null,null,null,null,"Jul"]
[null,null,null,null,null,null,null,null,null,null,"Aug"]
[null,null,null,null,null,null,null,null,null,null,"Sep"]
[null,null,null,null,null,null,null,null,null,null,"Oct"]
[null,null,null,null,null,null,null,null,null,null,"Nov"]
[null,null,null,null,null,null,null,null,null,null,"Dec"]
[null,null,null,null,null,null,null,null,null,null,"Annual",{"$f":"AVERAGE(L67:L78)","v":{"$error":"#DIV/0!"}},{"$f":"MAX(M67:M78)","v":0},{"$f":"AVERAGE(N67:N78)","v":{"$error":"#DIV/0!"}},{"$f":"MAX(O67:O78)","v":0}]

{"sheet":"TOC","index":18,"n_rows":79,"n_cols":17,"rows_kept":79,"cut":false,"hidden":false,"merged":[[3,16,7,18],[9,16,11,18],[12,16,15,18],[66,9,78,9],[4,1,4,3],[4,4,4,6],[4,9,4,14],[6,9,18,9],[21,9,33,9],[36,9,48,9],[47,0,47,6],[48,0,51,6],[51,9,63,9]]}
[{"$f":"+'Cover Page'!$B$29","v":"Annual Performance Report 2024"},null,null,null,{"$f":"+'Cover Page'!$B$33","v":"Severnside Energy Recovery Centre"}]
[]
["Monitoring of Total organic carbon emissions",null,null,"Whole Installation",null,null,"See  Notes in Cell Q3",null,null,{"$f":"+A3","v":"Monitoring of Total organic carbon emissions"},null,null,null,"Per Combustion Line",null,null,"Notes:"]
[null,null,null,null,null,null,null,null,null,null,null,null,null,null,null,null,"User to add logic to complete Whole installation, Table A5:G18. From the data in Per Combustion Line, Table J6:O79, subject to No. of lines installed"]
[{"$f":"+'Cover Page'!C39","v":2024},"1/2 Hourly Reference Periods",null,null,"Daily Reference Periods"]
["mg/Nm3","1/2 hourly TOC ELV","Monthly mean of half-hourly averages","Highest half- hourly average","Daily TOC ELV","Monthly mean of  daily averages","Highest daily average",null,null,{"$f":"+A5","v":2024},"mg/Nm3","Monthly mean of half-hourly averages","Highest half- hourly average","Monthly mean of  daily averages","Highest daily average"]
["Jan",20,{"$f":"AVERAGE(L7,L22,L37,L52,L67)","v":0.2},{"$f":"MAX(M7,M22,M37,M52,M67)","v":5.0999999999999996},10,{"$f":"AVERAGE(N7,N22,N37,N52,N67)","v":0.21500000000000002},{"$f":"MAX(O7,O22,O37,O52,O67)","v":0.5},null,null,"A1","Jan",0.1,3.4,0.1,0.2]
["Feb",20,{"$f":"AVERAGE(L8,L23,L38,L53,L68)","v":0.2},{"$f":"MAX(M8,M23,M38,M53,M68)","v":2.8},10,{"$f":"AVERAGE(N8,N23,N38,N53,N68)","v":0.19500000000000001},{"$f":"MAX(O8,O23,O38,O53,O68)","v":0.5},null,null,null,"Feb",0.1,2.2999999999999998,0.09,0.4]
["Mar",20,0.15000000000000002,3.3,10,0.155,0.4,null,null,null,"Mar",0.1,3.3,0.09,0.2,null,"Whole Installation table A5:G18:"]
["Apr",20,0.15000000000000002,4.5999999999999996,10,0.17,0.3,null,null,null,"Apr",0.1,4.5999999999999996,0.14000000000000001,0.3,null,"Mean: for 1/2 hourly and daily periods calculate mean of values across all operational combustion lines for the month"]
["May",20,0.1,7,10,0.13500000000000001,0.3,null,null,null,"May",0.1,7,0.13,0.3]
["Jun",20,0.15000000000000002,3,10,0.15,0.2,null,null,null,"Jun",0.1,0.5,"N/A","N/A"]
["Jul",20,0.2,6.7,10,0.185,0.3,null,null,null,"Jul",0.2,6.7,0.17,0.3,null,"Maximum: for 1/2 hourly and daily periods use the highest value across all operational combustion lines for the month"]
["Aug",20,0.2,6.2,10,0.19,0.4,null,null,null,"Aug",0.2,6.2,0.2,0.4]
["Sep",20,0.15000000000000002,3.9,10,0.155,0.4,null,null,null,"Sep",0.1,3.9,0.13,0.4]
["Oct",20,0.30000000000000004,3.2,10,0.26500000000000001,2,null,null,null,"Oct",0.4,3.2,0.38,2]
["Nov",20,0.35,3.5,10,0.27999999999999997,1.3,null,null,null,"Nov",0.5,2.7,0.47,1.3]
["Dec",20,0.3,3,10,0.29499999999999998,1.3,null,null,null,"Dec",0.5,2.2999999999999998,0.48,1.3]
[null,null,null,null,null,null,null,null,null,null,"Annual",{"$f":"AVERAGE(L7:L18)","v":0.20833333333333334},{"$f":"MAX(M7:M18)","v":7},{"$f":"AVERAGE(N7:N18)","v":0.21636363636363634},{"$f":"MAX(O7:O18)","v":2}]
[]
[null,null,null,null,null,null,null,null,null,{"$f":"+A5","v":2024},"mg/Nm3","Monthly mean of half-hourly averages","Highest half- hourly average","Monthly mean of  daily averages","Highest daily average"]
[null,null,null,null,null,null,null,null,null,"A2","Jan",0.3,5.0999999999999996,0.33,0.5]
[null,null,null,null,null,null,null,null,null,null,"Feb",0.3,2.8,0.3,0.5]
[null,null,null,null,null,null,null,null,null,null,"Mar",0.2,3.1,0.22,0.4]
[null,null,null,null,null,null,null,null,null,null,"Apr",0.2,3.5,0.2,0.3]
[null,null,null,null,null,null,null,null,null,null,"May",0.1,2.7,0.14000000000000001,0.3]
[null,null,null,null,null,null,null,null,null,null,"Jun",0.2,3,0.15,0.2]
[null,null,null,null,null,null,null,null,null,null,"Jul",0.2,3.1,0.2,0.3]
[null,null,null,null,null,null,null,null,null,null,"Aug",0.2,3.3,0.18,0.2]
[null,null,null,null,null,null,null,null,null,null,"Sep",0.2,3,0.18,0.4]
[null,null,null,null,null,null,null,null,null,null,"Oct",0.2,2.7,0.15,0.3]
[null,null,null,null,null,null,null,null,null,null,"Nov",0.2,3.5,0.09,0.3]
[null,null,null,null,null,null,null,null,null,null,"Dec",0.1,3,0.11,0.4]
[null,null,null,null,null,null,null,null,null,null,"Annual",{"$f":"AVERAGE(L22:L33)","v":0.20000000000000004},{"$f":"MAX(M22:M33)","v":5.0999999999999996},{"$f":"AVERAGE(N22:N33)","v":0.18749999999999997},{"$f":"MAX(O22:O33)","v":0.5}]
[]
[null,null,null,null,null,null,null,null,null,{"$f":"+A5","v":2024},"mg/Nm3","Monthly mean of half-hourly averages","Highest half- hourly average","Monthly mean of  daily averages","Highest daily average"]
[null,null,null,null,null,null,null,null,null,"A3","Jan"]
[null,null,null,null,null,null,null,null,null,null,"Feb"]
[null,null,null,null,null,null,null,null,null,null,"Mar"]
[null,null,null,null,null,null,null,null,null,null,"Apr"]
[null,null,null,null,null,null,null,null,null,null,"May"]
[null,null,null,null,null,null,null,null,null,null,"Jun"]
[null,null,null,null,null,null,null,null,null,null,"Jul"]
[null,null,null,null,null,null,null,null,null,null,"Aug"]
[null,null,null,null,null,null,null,null,null,null,"Sep"]
[null,null,null,null,null,null,null,null,null,null,"Oct"]
[null,null,null,null,null,null,null,null,null,null,"Nov"]
["Comments :",null,null,null,null,null,null,null,null,null,"Dec"]
["No daily averages were recorded on Line 1 during June as the plant was shutdown for planned annual maintenance.",null,null,null,null,null,null,null,null,null,"Annual",{"$f":"AVERAGE(L37:L48)","v":{"$error":"#DIV/0!"}},{"$f":"MAX(M37:M48)","v":0},{"$f":"AVERAGE(N37:N48)","v":{"$error":"#DIV/0!"}},{"$f":"MAX(O37:O48)","v":0}]
[]
[null,null,null,null,null,null,null,null,null,{"$f":"+A5","v":2024},"mg/Nm3","Monthly mean of half-hourly averages","Highest half- hourly average","Monthly mean of  daily averages","Highest daily average"]
[null,null,null,null,null,null,null,null,null,"A4","Jan"]
[null,null,null,null,null,null,null,null,null,null,"Feb"]
[null,null,null,null,null,null,null,null,null,null,"Mar"]
[null,null,null,null,null,null,null,null,null,null,"Apr"]
[null,null,null,null,null,null,null,null,null,null,"May"]
[null,null,null,null,null,null,null,null,null,null,"Jun"]
[null,null,null,null,null,null,null,null,null,null,"Jul"]
[null,null,null,null,null,null,null,null,null,null,"Aug"]
[null,null,null,null,null,null,null,null,null,null,"Sep"]
[null,null,null,null,null,null,null,null,null,null,"Oct"]
[null,null,null,null,null,null,null,null,null,null,"Nov"]
[null,null,null,null,null,null,null,null,null,null,"Dec"]
[null,null,null,null,null,null,null,null,null,null,"Annual",{"$f":"AVERAGE(L52:L63)","v":{"$error":"#DIV/0!"}},{"$f":"MAX(M52:M63)","v":0},{"$f":"AVERAGE(N52:N63)","v":{"$error":"#DIV/0!"}},{"$f":"MAX(O52:O63)","v":0}]
[]
[null,null,null,null,null,null,null,null,null,{"$f":"+A5","v":2024},"mg/Nm3","Monthly mean of half-hourly averages","Highest half- hourly average","Monthly mean of  daily averages","Highest daily average"]
[null,null,null,null,null,null,null,null,null,"A5","Jan"]
[null,null,null,null,null,null,null,null,null,null,"Feb"]
[null,null,null,null,null,null,null,null,null,null,"Mar"]
[null,null,null,null,null,null,null,null,null,null,"Apr"]
[null,null,null,null,null,null,null,null,null,null,"May"]
[null,null,null,null,null,null,null,null,null,null,"Jun"]
[null,null,null,null,null,null,null,null,null,null,"Jul"]
[null,null,null,null,null,null,null,null,null,null,"Aug"]
[null,null,null,null,null,null,null,null,null,null,"Sep"]
[null,null,null,null,null,null,null,null,null,null,"Oct"]
[null,null,null,null,null,null,null,null,null,null,"Nov"]
[null,null,null,null,null,null,null,null,null,null,"Dec"]
[null,null,null,null,null,null,null,null,null,null,"Annual",{"$f":"AVERAGE(L67:L78)","v":{"$error":"#DIV/0!"}},{"$f":"MAX(M67:M78)","v":0},{"$f":"AVERAGE(N67:N78)","v":{"$error":"#DIV/0!"}},{"$f":"MAX(O67:O78)","v":0}]

{"sheet":"Particulates","index":19,"n_rows":79,"n_cols":17,"rows_kept":79,"cut":false,"hidden":false,"merged":[[4,16,8,18],[10,16,12,18],[13,16,16,18],[66,9,78,9],[4,1,4,3],[4,4,4,6],[4,9,4,14],[6,9,18,9],[21,9,33,9],[36,9,48,9],[47,0,47,6],[48,0,51,6],[51,9,63,9],[18,4,18,6]]}
[{"$f":"+'Cover Page'!$B$29","v":"Annual Performance Report 2024"},null,null,null,{"$f":"+'Cover Page'!$B$33","v":"Severnside Energy Recovery Centre"}]
[]
["Monitoring of Particulate matter emissions",null,null,"Whole Installation",null,null,"See  Notes in Cell Q3",null,null,{"$f":"+A3","v":"Monitoring of Particulate matter emissions"},null,null,null,"Per Combustion Line",null,null,"Notes:"]
[]
[{"$f":"+'Cover Page'!C39","v":2024},"1/2 Hourly Reference Periods",null,null,"Daily Reference Periods",null,null,null,null,null,null,null,null,null,null,null,"User to add logic to complete Whole installation, Table A5:G18. From the data in Per Combustion Line, Table J6:O79, subject to No. of lines installed"]
["mg/Nm3","1/2 hourly PM ELV","Monthly mean of half-hourly averages","Highest half- hourly average","Daily PM ELV","Monthly mean of  daily averages","Highest daily average",null,null,{"$f":"+A5","v":2024},"mg/Nm3","Monthly mean of half-hourly averages","Highest half- hourly average","Monthly mean of  daily averages","Highest daily average"]
["Jan",30,{"$f":"AVERAGE(L7,L22,L37,L52,L67)","v":2.9},{"$f":"MAX(M7,M22,M37,M52,M67)","v":391.7},5,{"$f":"AVERAGE(N7,N22,N37,N52,N67)","v":1.615},{"$f":"MAX(O7,O22,O37,O52,O67)","v":2.5},null,null,"A1","Jan",3.8,391.7,1.23,2.5]
["Feb",30,{"$f":"AVERAGE(L8,L23,L38,L53,L68)","v":4.5},{"$f":"MAX(M8,M23,M38,M53,M68)","v":337.5},5,{"$f":"AVERAGE(N8,N23,N38,N53,N68)","v":1.575},{"$f":"MAX(O8,O23,O38,O53,O68)","v":3.4},null,null,null,"Feb",1.4,3.8,1.39,1.6]
["Mar",30,1.4,3.8,5,1.405,2,null,null,null,"Mar",1.4,3.8,1.44,1.8]
["Apr",30,1.35,4.5999999999999996,5,1.3900000000000001,2.1,null,null,null,"Apr",1.5,4.5999999999999996,1.53,2.1,null,"Whole Installation table A5:G18:"]
["May",30,1.4500000000000002,13.3,5,1.4,2,null,null,null,"May",1.6,13.3,1.46,2,null,"Mean: for 1/2 hourly and daily periods calculate mean of values across all operational combustion lines for the month"]
["Jun",30,1.7000000000000002,7.9,5,1.25,1.3,null,null,null,"Jun",2.2000000000000002,7.9,"N/A","N/A"]
["Jul",30,0.9,2.2000000000000002,5,0.89500000000000002,1.3,null,null,null,"Jul",0.9,1.5,0.87,0.9]
["Aug",30,1,23.1,5,0.94,1.1000000000000001,null,null,null,"Aug",1,23.1,0.92,1,null,"Maximum: for 1/2 hourly and daily periods use the highest value across all operational combustion lines for the month"]
["Sep",30,1.1000000000000001,1.8,5,1.075,1.5,null,null,null,"Sep",1,1.4,0.99,1.1000000000000001]
["Oct",30,1.4500000000000002,10.6,5,1.415,2.9,null,null,null,"Oct",1.1000000000000001,3.8,1.04,1.3]
["Nov",30,2.9499999999999997,16.100000000000001,5,2.63,4.7,null,null,null,"Nov",1.8,2.5,1.81,2]
["Dec",30,1.5499999999999998,4.8,5,1.5049999999999999,2.5,null,null,null,"Dec",1.7,2.2999999999999998,1.65,1.9]
[null,null,null,null,null,null,null,null,null,null,"Annual",{"$f":"AVERAGE(L7:L18)","v":1.6166666666666665},{"$f":"MAX(M7:M18)","v":391.7},{"$f":"AVERAGE(N7:N18)","v":1.302727272727273},{"$f":"MAX(O7:O18)","v":2.5}]
[]
[null,null,null,null,null,null,null,null,null,{"$f":"+A5","v":2024},"mg/Nm3","Monthly mean of half-hourly averages","Highest half- hourly average","Monthly mean of  daily averages","Highest daily average"]
[null,null,null,null,null,null,null,null,null,"A2","Jan",2,15.4,2,2.4]
[null,null,null,null,null,null,null,null,null,null,"Feb",7.6,337.5,1.76,3.4]
[null,null,null,null,null,null,null,null,null,null,"Mar",1.4,3.7,1.37,2]
[null,null,null,null,null,null,null,null,null,null,"Apr",1.2,2.4,1.25,1.5]
[null,null,null,null,null,null,null,null,null,null,"May",1.3,3,1.34,1.6]
[null,null,null,null,null,null,null,null,null,null,"Jun",1.2,2.6,1.25,1.3]
[null,null,null,null,null,null,null,null,null,null,"Jul",0.9,2.2000000000000002,0.92,1.3]
[null,null,null,null,null,null,null,null,null,null,"Aug",1,6.8,0.96,1.1000000000000001]
[null,null,null,null,null,null,null,null,null,null,"Sep",1.2,1.8,1.1599999999999999,1.5]
[null,null,null,null,null,null,null,null,null,null,"Oct",1.8,10.6,1.79,2.9]
[null,null,null,null,null,null,null,null,null,null,"Nov",4.0999999999999996,16.100000000000001,3.45,4.7]
[null,null,null,null,null,null,null,null,null,null,"Dec",1.4,4.8,1.36,2.5]
[null,null,null,null,null,null,null,null,null,null,"Annual",{"$f":"AVERAGE(L22:L33)","v":2.0916666666666668},{"$f":"MAX(M22:M33)","v":337.5},{"$f":"AVERAGE(N22:N33)","v":1.5508333333333331},{"$f":"MAX(O22:O33)","v":4.7}]
[]
[null,null,null,null,null,null,null,null,null,{"$f":"+A5","v":2024},"mg/Nm3","Monthly mean of half-hourly averages","Highest half- hourly average","Monthly mean of  daily averages","Highest daily average"]
[null,null,null,null,null,null,null,null,null,"A3","Jan"]
[null,null,null,null,null,null,null,null,null,null,"Feb"]
[null,null,null,null,null,null,null,null,null,null,"Mar"]
[null,null,null,null,null,null,null,null,null,null,"Apr"]
[null,null,null,null,null,null,null,null,null,null,"May"]
[null,null,null,null,null,null,null,null,null,null,"Jun"]
[null,null,null,null,null,null,null,null,null,null,"Jul"]
[null,null,null,null,null,null,null,null,null,null,"Aug"]
[null,null,null,null,null,null,null,null,null,null,"Sep"]
[null,null,null,null,null,null,null,null,null,null,"Oct"]
[null,null,null,null,null,null,null,null,null,null,"Nov"]
["Comments :",null,null,null,null,null,null,null,null,null,"Dec"]
["No daily averages were recorded on Line 1 during June as the plant was shutdown for planned annual maintenance.",null,null,null,null,null,null,null,null,null,"Annual",{"$f":"AVERAGE(L37:L48)","v":{"$error":"#DIV/0!"}},{"$f":"MAX(M37:M48)","v":0},{"$f":"AVERAGE(N37:N48)","v":{"$error":"#DIV/0!"}},{"$f":"MAX(O37:O48)","v":0}]
[]
[null,null,null,null,null,null,null,null,null,{"$f":"+A5","v":2024},"mg/Nm3","Monthly mean of half-hourly averages","Highest half- hourly average","Monthly mean of  daily averages","Highest daily average"]
[null,null,null,null,null,null,null,null,null,"A4","Jan"]
[null,null,null,null,null,null,null,null,null,null,"Feb"]
[null,null,null,null,null,null,null,null,null,null,"Mar"]
[null,null,null,null,null,null,null,null,null,null,"Apr"]
[null,null,null,null,null,null,null,null,null,null,"May"]
[null,null,null,null,null,null,null,null,null,null,"Jun"]
[null,null,null,null,null,null,null,null,null,null,"Jul"]
[null,null,null,null,null,null,null,null,null,null,"Aug"]
[null,null,null,null,null,null,null,null,null,null,"Sep"]
[null,null,null,null,null,null,null,null,null,null,"Oct"]
[null,null,null,null,null,null,null,null,null,null,"Nov"]
[null,null,null,null,null,null,null,null,null,null,"Dec"]
[null,null,null,null,null,null,null,null,null,null,"Annual",{"$f":"AVERAGE(L52:L63)","v":{"$error":"#DIV/0!"}},{"$f":"MAX(M52:M63)","v":0},{"$f":"AVERAGE(N52:N63)","v":{"$error":"#DIV/0!"}},{"$f":"MAX(O52:O63)","v":0}]
[]
[null,null,null,null,null,null,null,null,null,{"$f":"+A5","v":2024},"mg/Nm3","Monthly mean of half-hourly averages","Highest half- hourly average","Monthly mean of  daily averages","Highest daily average"]
[null,null,null,null,null,null,null,null,null,"A5","Jan"]
[null,null,null,null,null,null,null,null,null,null,"Feb"]
[null,null,null,null,null,null,null,null,null,null,"Mar"]
[null,null,null,null,null,null,null,null,null,null,"Apr"]
[null,null,null,null,null,null,null,null,null,null,"May"]
[null,null,null,null,null,null,null,null,null,null,"Jun"]
[null,null,null,null,null,null,null,null,null,null,"Jul"]
[null,null,null,null,null,null,null,null,null,null,"Aug"]
[null,null,null,null,null,null,null,null,null,null,"Sep"]
[null,null,null,null,null,null,null,null,null,null,"Oct"]
[null,null,null,null,null,null,null,null,null,null,"Nov"]
[null,null,null,null,null,null,null,null,null,null,"Dec"]
[null,null,null,null,null,null,null,null,null,null,"Annual",{"$f":"AVERAGE(L67:L78)","v":{"$error":"#DIV/0!"}},{"$f":"MAX(M67:M78)","v":0},{"$f":"AVERAGE(N67:N78)","v":{"$error":"#DIV/0!"}},{"$f":"MAX(O67:O78)","v":0}]

{"sheet":"CO 95% 10 min","index":20,"n_rows":80,"n_cols":19,"rows_kept":80,"cut":false,"hidden":false,"merged":[[4,18,8,20],[10,18,12,20],[13,18,16,20],[67,10,79,10],[5,1,5,4],[5,5,5,7],[5,10,5,16],[7,10,19,10],[22,10,34,10],[37,10,49,10],[48,0,48,7],[49,0,52,7],[52,10,64,10]]}
[{"$f":"+'Cover Page'!$B$29","v":"Annual Performance Report 2024"},null,null,null,{"$f":"+'Cover Page'!$B$33","v":"Severnside Energy Recovery Centre"}]
[]
["Monitoring of Carbon Monoxide (10-minute avg)",null,null,null,"Whole Installation",null,null,"See  Notes in Cell S3",null,{"$f":"+A3","v":"Monitoring of Carbon Monoxide (10-minute avg)"},null,null,null,null,"Per Combustion Line",null,"Notes:",null,"Notes:"]
[]
[null,null,null,null,null,null,null,null,null,null,null,null,null,null,null,null,null,null,"User to add logic to complete Whole installation, Table A5:H18. From the data in Per Combustion Line, Table K6:Q79, subject to No. of lines installed"]
[{"$f":"+'Cover Page'!C39","v":2024},"10-minute Reference Periods",null,null,null,"Daily Reference Periods"]
["mg/Nm3","95%ile 10-min avg CO ELV","Highest daily 95%ile 10-min average","Monthly mean of 10-min averages","Highest 10-min average","Daily CO ELV","Monthly mean of  daily averages","Highest daily average",null,null,{"$f":"+A6","v":2024},"mg/Nm3","Highest daily 95%ile 10-min average","Monthly mean of 10-min averages","Highest 10-min average","Monthly mean of  daily averages","Highest daily average"]
["Jan",150,{"$f":"AVERAGE(M8,M23,M38,M53,M68)","v":3.96},{"$f":"AVERAGE(N8,N23,N38,N53,N68)","v":2.25},{"$f":"MAX(O8,O23,O38,O53,O68)","v":388.8},50,{"$f":"AVERAGE(P8,P23,P38,P53,P68)","v":2.375},{"$f":"MAX(Q8,Q23,Q38,Q53,Q68)","v":4.9000000000000004},null,null,"A1","Jan",3.11,2.5,115.7,2.6,3.4]
["Feb",{"$f":"+B8","v":150},{"$f":"AVERAGE(M9,M24,M39,M54,M69)","v":2.92},{"$f":"AVERAGE(N9,N24,N39,N54,N69)","v":1.85},{"$f":"MAX(O9,O24,O39,O54,O69)","v":179.6},{"$f":"+F8","v":50},{"$f":"AVERAGE(P9,P24,P39,P54,P69)","v":1.9100000000000001},{"$f":"MAX(Q9,Q24,Q39,Q54,Q69)","v":3.7},null,null,null,"Feb",3.36,2.7,136.19999999999999,2.68,3.7]
["Mar",{"$f":"+B9","v":150},3.5300000000000002,2.2000000000000002,196,{"$f":"+F9","v":50},2.06,3.5,null,null,null,"Mar",3.77,2.6,136.30000000000001,2.44,3.5,null,"Whole Installation table A5:H18:"]
["Apr",150,4.7149999999999999,2.75,352.5,50,2.78,6.6,null,null,null,"Apr",5.44,3.8,268.10000000000002,3.84,6.6,null,"Mean: for 10-min and daily periods use average of all operational combustion lines."]
["May",150,3.1849999999999996,1.7999999999999998,226.6,50,1.7350000000000001,4.5,null,null,null,"May",4.3499999999999996,2.8,226.6,2.7,4.5]
["Jun",150,1.2050000000000001,0.85000000000000009,79.599999999999994,50,0.75,1.3,null,null,null,"Jun",1.1399999999999999,0.9,21.2,"N/A","N/A"]
["Jul",150,3.7850000000000001,1.25,580.1,50,1.24,6.9,null,null,null,"Jul",4.1100000000000003,1.5,580.1,1.49,6.9,null,"Maximum: for 10-min and daily periods use the highest of all operational combustion lines in any month."]
["Aug",150,4.1750000000000007,1.45,524,50,1.395,4.4000000000000004,null,null,null,"Aug",4.16,1.4,400.3,1.42,4.4000000000000004]
["Sep",150,2.5649999999999999,1.3,284.89999999999998,50,1.3149999999999999,3.4,null,null,null,"Sep",2.5,1.3,194.9,1.3,3.4]
["Oct",150,3.8600000000000003,1.45,329.6,50,1.36,5.2,null,null,null,"Oct",4.16,1.7,329.6,1.6,5.2]
["Nov",150,4.4400000000000004,2.25,413.4,50,2.31,5.5,null,null,null,"Nov",5.45,3,413.4,3.08,5.5]
["Dec",150,4.665,2.2000000000000002,369.4,50,2.21,6.1,null,null,null,"Dec",5.33,2.8,369.4,2.82,6.1]
[null,null,null,null,null,null,null,null,null,null,null,"Annual",{"$f":"AVERAGE(M8:M19)","v":3.9066666666666667},null,{"$f":"MAX(O8:O19)","v":580.1},{"$f":"AVERAGE(P8:P19)","v":2.3609090909090913},{"$f":"MAX(Q8:Q19)","v":6.9}]
[]
[null,null,null,null,null,null,null,null,null,null,{"$f":"+A6","v":2024},"mg/Nm3","Highest daily 95%ile 10-min average","Monthly mean of 10-min averages","Highest 10-min average","Monthly mean of  daily averages","Highest daily average"]
[null,null,null,null,null,null,null,null,null,null,"A2","Jan",4.8099999999999996,2,388.8,2.15,4.9000000000000004]
[null,null,null,null,null,null,null,null,null,null,null,"Feb",2.48,1,179.6,1.1399999999999999,3.6]
[null,null,null,null,null,null,null,null,null,null,null,"Mar",3.29,1.8,196,1.68,3.3]
[null,null,null,null,null,null,null,null,null,null,null,"Apr",3.99,1.7,352.5,1.72,4.3]
[null,null,null,null,null,null,null,null,null,null,null,"May",2.02,0.8,212.5,0.77,2.1]
[null,null,null,null,null,null,null,null,null,null,null,"Jun",1.27,0.8,79.599999999999994,0.75,1.3]
[null,null,null,null,null,null,null,null,null,null,null,"Jul",3.46,1,169.9,0.99,3.5]
[null,null,null,null,null,null,null,null,null,null,null,"Aug",4.1900000000000004,1.5,524,1.37,4.2]
[null,null,null,null,null,null,null,null,null,null,null,"Sep",2.63,1.3,284.89999999999998,1.33,2.9]
[null,null,null,null,null,null,null,null,null,null,null,"Oct",3.56,1.2,176.1,1.1200000000000001,3.5]
[null,null,null,null,null,null,null,null,null,null,null,"Nov",3.43,1.5,288.10000000000002,1.54,3.3]
[null,null,null,null,null,null,null,null,null,null,null,"Dec",4,1.6,253.2,1.6,4.2]
[null,null,null,null,null,null,null,null,null,null,null,"Annual",{"$f":"AVERAGE(M23:M34)","v":3.2608333333333337},null,{"$f":"MAX(O23:O34)","v":524},{"$f":"AVERAGE(P23:P34)","v":1.3466666666666667},{"$f":"MAX(Q23:Q34)","v":4.9000000000000004}]
[]
[null,null,null,null,null,null,null,null,null,null,{"$f":"+A6","v":2024},"mg/Nm3","Highest daily 95%ile 10-min average","Monthly mean of 10-min averages","Highest 10-min average","Monthly mean of  daily averages","Highest daily average"]
[null,null,null,null,null,null,null,null,null,null,"A3","Jan"]
[null,null,null,null,null,null,null,null,null,null,null,"Feb"]
[null,null,null,null,null,null,null,null,null,null,null,"Mar"]
[null,null,null,null,null,null,null,null,null,null,null,"Apr"]
[null,null,null,null,null,null,null,null,null,null,null,"May"]
[null,null,null,null,null,null,null,null,null,null,null,"Jun"]
[null,null,null,null,null,null,null,null,null,null,null,"Jul"]
[null,null,null,null,null,null,null,null,null,null,null,"Aug"]
[null,null,null,null,null,null,null,null,null,null,null,"Sep"]
[null,null,null,null,null,null,null,null,null,null,null,"Oct"]
[null,null,null,null,null,null,null,null,null,null,null,"Nov"]
["Comments :",null,null,null,null,null,null,null,null,null,null,"Dec"]
["Environment Agency explanatory note: The 10-minute average ELV is based on the “95th percentile”. In this case this means that 95% of the 10 minute averages in the relevant 24-hour period (i.e. 137) must be below 150 mg/Nm3, and 5% (i.e. 7) are allowed to be any value above 150 mg/Nm3. Whilst we expect operators to minimise CO emissions at all times, it is perfectly acceptable for the value of the maximum 10-minute average to be above 150 mg/Nm3, provided the 95th percentile ELV has been met for that period. \nNo daily averages were recorded on Line 1 during June as the plant was shutdown for planned annual maintenance.",null,null,null,null,null,null,null,null,null,null,"Annual",{"$f":"AVERAGE(M38:M49)","v":{"$error":"#DIV/0!"}},null,{"$f":"MAX(O38:O49)","v":0},{"$f":"AVERAGE(P38:P49)","v":{"$error":"#DIV/0!"}},{"$f":"MAX(Q38:Q49)","v":0}]
[]
[null,null,null,null,null,null,null,null,null,null,{"$f":"+A6","v":2024},"mg/Nm3","Highest daily 95%ile 10-min average","Monthly mean of 10-min averages","Highest 10-min average","Monthly mean of  daily averages","Highest daily average"]
[null,null,null,null,null,null,null,null,null,null,"A4","Jan"]
[null,null,null,null,null,null,null,null,null,null,null,"Feb"]
[null,null,null,null,null,null,null,null,null,null,null,"Mar"]
[null,null,null,null,null,null,null,null,null,null,null,"Apr"]
[null,null,null,null,null,null,null,null,null,null,null,"May"]
[null,null,null,null,null,null,null,null,null,null,null,"Jun"]
[null,null,null,null,null,null,null,null,null,null,null,"Jul"]
[null,null,null,null,null,null,null,null,null,null,null,"Aug"]
[null,null,null,null,null,null,null,null,null,null,null,"Sep"]
[null,null,null,null,null,null,null,null,null,null,null,"Oct"]
[null,null,null,null,null,null,null,null,null,null,null,"Nov"]
[null,null,null,null,null,null,null,null,null,null,null,"Dec"]
[null,null,null,null,null,null,null,null,null,null,null,"Annual",{"$f":"AVERAGE(M53:M64)","v":{"$error":"#DIV/0!"}},null,{"$f":"MAX(O53:O64)","v":0},{"$f":"AVERAGE(P53:P64)","v":{"$error":"#DIV/0!"}},{"$f":"MAX(Q53:Q64)","v":0}]
[]
[null,null,null,null,null,null,null,null,null,null,{"$f":"+A6","v":2024},"mg/Nm3","95%ile 10-min avg maximum","Monthly CO 10-min avg mean","10-min avg maximum","Monthly daily mean","Monthly daily maximum"]
[null,null,null,null,null,null,null,null,null,null,"A5","Jan"]
[null,null,null,null,null,null,null,null,null,null,null,"Feb"]
[null,null,null,null,null,null,null,null,null,null,null,"Mar"]
[null,null,null,null,null,null,null,null,null,null,null,"Apr"]
[null,null,null,null,null,null,null,null,null,null,null,"May"]
[null,null,null,null,null,null,null,null,null,null,null,"Jun"]
[null,null,null,null,null,null,null,null,null,null,null,"Jul"]
[null,null,null,null,null,null,null,null,null,null,null,"Aug"]
[null,null,null,null,null,null,null,null,null,null,null,"Sep"]
[null,null,null,null,null,null,null,null,null,null,null,"Oct"]
[null,null,null,null,null,null,null,null,null,null,null,"Nov"]
[null,null,null,null,null,null,null,null,null,null,null,"Dec"]
[null,null,null,null,null,null,null,null,null,null,null,"Annual",{"$f":"AVERAGE(M68:M79)","v":{"$error":"#DIV/0!"}},null,{"$f":"MAX(O68:O79)","v":0},{"$f":"AVERAGE(P68:P79)","v":{"$error":"#DIV/0!"}},{"$f":"MAX(Q68:Q79)","v":0}]

{"sheet":"NH3","index":21,"n_rows":79,"n_cols":17,"rows_kept":79,"cut":false,"hidden":false,"merged":[[3,16,7,18],[9,16,11,18],[12,16,15,18],[66,9,78,9],[4,1,4,3],[4,4,4,6],[4,9,4,14],[6,9,18,9],[21,9,33,9],[36,9,48,9],[47,0,47,6],[48,0,51,6],[51,9,63,9],[18,4,18,6]]}
[{"$f":"+'Cover Page'!$B$29","v":"Annual Performance Report 2024"},null,null,null,{"$f":"+'Cover Page'!$B$33","v":"Severnside Energy Recovery Centre"}]
[]
["Monitoring of Ammonia emissions ",null,null,"Whole Installation",null,null,"See  Notes in Cell Q3",null,null,{"$f":"+A3","v":"Monitoring of Ammonia emissions "},null,null,null,"Per Combustion Line",null,null,"Notes:"]
[null,null,null,null,null,null,null,null,null,null,null,null,null,null,null,null,"User to add logic to complete Whole installation, Table A5:G18. From the data in Per Combustion Line, Table J6:O79, subject to No. of lines installed"]
[{"$f":"+'Cover Page'!C39","v":2024},"1/2 Hourly Reference Periods",null,null,"Daily Reference Periods"]
["mg/Nm3","1/2 hourly NH3 ELV","Monthly mean of half-hourly averages","Highest half- hourly average","Daily NH3 ELV","Monthly mean of  daily averages","Highest daily average",null,null,{"$f":"+A5","v":2024},"mg/Nm3","Monthly mean of half-hourly averages","Highest half- hourly average","Monthly mean of  daily averages","Highest daily average"]
["Jan","None",{"$f":"AVERAGE(L7,L22,L37,L52,L67)","v":2.1500000000000004},{"$f":"MAX(M7,M22,M37,M52,M67)","v":7.2},10,{"$f":"AVERAGE(N7,N22,N37,N52,N67)","v":2.1749999999999998},{"$f":"MAX(O7,O22,O37,O52,O67)","v":4},null,null,"A1","Jan",2.2000000000000002,6.3,2.23,3.7]
["Feb",{"$f":"+B7","v":"None"},{"$f":"AVERAGE(L8,L23,L38,L53,L68)","v":2.2000000000000002},{"$f":"MAX(M8,M23,M38,M53,M68)","v":10.3},10,{"$f":"AVERAGE(N8,N23,N38,N53,N68)","v":2.29},{"$f":"MAX(O8,O23,O38,O53,O68)","v":5.0999999999999996},null,null,null,"Feb",2.2999999999999998,10.3,2.39,3.9]
["Mar",{"$f":"+B8","v":"None"},1.4500000000000002,15.1,10,1.4750000000000001,2.9,null,null,null,"Mar",1.8,15.1,1.83,2.9,null,"Whole Installation table A5:G18:"]
["Apr","None",0.8,7.3,10,0.81499999999999995,2.6,null,null,null,"Apr",0.9,7.3,0.94,2.6,null,"Mean: for 1/2 hourly and daily periods calculate mean of values across all operational combustion lines for the month"]
["May","None",0.85,7.2,10,0.85,1.7,null,null,null,"May",1,5.6,0.99,1.7]
["Jun","None",0.44999999999999996,1.9,10,0.65,0.8,null,null,null,"Jun",0.2,0.5,"N/A","N/A"]
["Jul","None",0.9,8.1,10,0.96000000000000008,3.5,null,null,null,"Jul",0.5,3.2,0.55000000000000004,1.1000000000000001,null,"Maximum: for 1/2 hourly and daily periods use the highest value across all operational combustion lines for the month"]
["Aug","None",0.5,6,10,0.51,2.1,null,null,null,"Aug",0.6,6,0.56000000000000005,2.1]
["Sep","None",0.5,4.0999999999999996,10,0.54500000000000004,1.5,null,null,null,"Sep",0.7,4.0999999999999996,0.75,1.5]
["Oct","None",0.35,4.2,10,0.36499999999999999,0.9,null,null,null,"Oct",0.5,4.2,0.52,0.9]
["Nov","None",0.25,2.6,10,0.22,0.6,null,null,null,"Nov",0.1,2.6,0.06,0.4]
["Dec","None",0.2,2.6,10,0.20499999999999999,0.7,null,null,null,"Dec",0,2.6,0.04,0.7]
[null,null,null,null,null,null,null,null,null,null,"Annual",{"$f":"AVERAGE(L7:L18)","v":0.8999999999999998},{"$f":"MAX(M7:M18)","v":15.1},{"$f":"AVERAGE(N7:N18)","v":0.98727272727272741},{"$f":"MAX(O7:O18)","v":3.9}]
[]
[null,null,null,null,null,null,null,null,null,{"$f":"+A5","v":2024},"mg/Nm3","Monthly mean of half-hourly averages","Highest half- hourly average","Monthly mean of  daily averages","Highest daily average"]
[null,null,null,null,null,null,null,null,null,"A2","Jan",2.1,7.2,2.12,4]
[null,null,null,null,null,null,null,null,null,null,"Feb",2.1,7.1,2.19,5.0999999999999996]
[null,null,null,null,null,null,null,null,null,null,"Mar",1.1000000000000001,4.5999999999999996,1.1200000000000001,2.1]
[null,null,null,null,null,null,null,null,null,null,"Apr",0.7,4.4000000000000004,0.69,1.8]
[null,null,null,null,null,null,null,null,null,null,"May",0.7,7.2,0.71,1.5]
[null,null,null,null,null,null,null,null,null,null,"Jun",0.7,1.9,0.65,0.8]
[null,null,null,null,null,null,null,null,null,null,"Jul",1.3,8.1,1.37,3.5]
[null,null,null,null,null,null,null,null,null,null,"Aug",0.4,2.5,0.46,0.9]
[null,null,null,null,null,null,null,null,null,null,"Sep",0.3,1.8,0.34,0.7]
[null,null,null,null,null,null,null,null,null,null,"Oct",0.2,1,0.21,0.4]
[null,null,null,null,null,null,null,null,null,null,"Nov",0.4,2.1,0.38,0.6]
[null,null,null,null,null,null,null,null,null,null,"Dec",0.4,1.9,0.37,0.7]
[null,null,null,null,null,null,null,null,null,null,"Annual",{"$f":"AVERAGE(L22:L33)","v":0.86666666666666681},{"$f":"MAX(M22:M33)","v":8.1},{"$f":"AVERAGE(N22:N33)","v":0.88416666666666688},{"$f":"MAX(O22:O33)","v":5.0999999999999996}]
[]
[null,null,null,null,null,null,null,null,null,{"$f":"+A5","v":2024},"mg/Nm3","Monthly mean of half-hourly averages","Highest half- hourly average","Monthly mean of  daily averages","Highest daily average"]
[null,null,null,null,null,null,null,null,null,"A3","Jan"]
[null,null,null,null,null,null,null,null,null,null,"Feb"]
[null,null,null,null,null,null,null,null,null,null,"Mar"]
[null,null,null,null,null,null,null,null,null,null,"Apr"]
[null,null,null,null,null,null,null,null,null,null,"May"]
[null,null,null,null,null,null,null,null,null,null,"Jun"]
[null,null,null,null,null,null,null,null,null,null,"Jul"]
[null,null,null,null,null,null,null,null,null,null,"Aug"]
[null,null,null,null,null,null,null,null,null,null,"Sep"]
[null,null,null,null,null,null,null,null,null,null,"Oct"]
[null,null,null,null,null,null,null,null,null,null,"Nov"]
["Comments :",null,null,null,null,null,null,null,null,null,"Dec"]
["An indicated ELV value of zero in the table above means that no ammonia limit is/was set in the permit. \nNo daily averages were recorded on Line 1 during June as the plant was shutdown for planned annual maintenance.",null,null,null,null,null,null,null,null,null,"Annual",{"$f":"AVERAGE(L37:L48)","v":{"$error":"#DIV/0!"}},{"$f":"MAX(M37:M48)","v":0},{"$f":"AVERAGE(N37:N48)","v":{"$error":"#DIV/0!"}},{"$f":"MAX(O37:O48)","v":0}]
[]
[null,null,null,null,null,null,null,null,null,{"$f":"+A5","v":2024},"mg/Nm3","Monthly mean of half-hourly averages","Highest half- hourly average","Monthly mean of  daily averages","Highest daily average"]
[null,null,null,null,null,null,null,null,null,"A4","Jan"]
[null,null,null,null,null,null,null,null,null,null,"Feb"]
[null,null,null,null,null,null,null,null,null,null,"Mar"]
[null,null,null,null,null,null,null,null,null,null,"Apr"]
[null,null,null,null,null,null,null,null,null,null,"May"]
[null,null,null,null,null,null,null,null,null,null,"Jun"]
[null,null,null,null,null,null,null,null,null,null,"Jul"]
[null,null,null,null,null,null,null,null,null,null,"Aug"]
[null,null,null,null,null,null,null,null,null,null,"Sep"]
[null,null,null,null,null,null,null,null,null,null,"Oct"]
[null,null,null,null,null,null,null,null,null,null,"Nov"]
[null,null,null,null,null,null,null,null,null,null,"Dec"]
[null,null,null,null,null,null,null,null,null,null,"Annual",{"$f":"AVERAGE(L52:L63)","v":{"$error":"#DIV/0!"}},{"$f":"MAX(M52:M63)","v":0},{"$f":"AVERAGE(N52:N63)","v":{"$error":"#DIV/0!"}},{"$f":"MAX(O52:O63)","v":0}]
[]
[null,null,null,null,null,null,null,null,null,{"$f":"+A5","v":2024},"mg/Nm3","Monthly mean of half-hourly averages","Highest half- hourly average","Monthly mean of  daily averages","Highest daily average"]
[null,null,null,null,null,null,null,null,null,"A5","Jan"]
[null,null,null,null,null,null,null,null,null,null,"Feb"]
[null,null,null,null,null,null,null,null,null,null,"Mar"]
[null,null,null,null,null,null,null,null,null,null,"Apr"]
[null,null,null,null,null,null,null,null,null,null,"May"]
[null,null,null,null,null,null,null,null,null,null,"Jun"]
[null,null,null,null,null,null,null,null,null,null,"Jul"]
[null,null,null,null,null,null,null,null,null,null,"Aug"]
[null,null,null,null,null,null,null,null,null,null,"Sep"]
[null,null,null,null,null,null,null,null,null,null,"Oct"]
[null,null,null,null,null,null,null,null,null,null,"Nov"]
[null,null,null,null,null,null,null,null,null,null,"Dec"]
[null,null,null,null,null,null,null,null,null,null,"Annual",{"$f":"AVERAGE(L67:L78)","v":{"$error":"#DIV/0!"}},{"$f":"MAX(M67:M78)","v":0},{"$f":"AVERAGE(N67:N78)","v":{"$error":"#DIV/0!"}},{"$f":"MAX(O67:O78)","v":0}]

{"sheet":"Template changes log","index":22,"n_rows":17,"n_cols":3,"rows_kept":17,"cut":false,"hidden":false,"merged":[]}
["Log of changes to template (Environment Agency use only)"]
[]
["Date","Description of change","New version number and date"]
["2024-01-16","Air (periodic) tab: corrected default O2 reference from 6 to 11% ","Version 23.5a (for incinerators) - 16/01/2024"]
["2024-09-23","Air (periodic) tab: corrected symbol for Thallium to Tl"]
["2024-09-23","Air (periodic) tab: removed last year's references to different emission limit values applying from 03/12/23 and updated all relevant ELVs"]
["2024-09-23","Tabs for continuously monitored pollutants (HCl, SO2 etc.): changed terminology in table headings to improve clarity"]
["2024-09-23","Tabs for continuously monitored pollutants (HCl, SO2 etc.): removed last year's references to different emission limit values applying from 03/12/23 and updated all relevant ELVs"]
["2024-09-23","Perf 1 tab: updated formula for water usage to report m3 rather than litres and corrected error with formula copying operator name"]
["2024-09-23","Operational Summary tab: table added on start-up's and shut-downs"]
["2024-09-23","Operational Summary tab: table added on dioxins and mercury protocols"]
["2024-09-23","Operational Summary tab: table added on AST, QAL 2 and calibration functions"]
["2024-09-23","CO2 N2O tab: various changes made to notes to reflect the fact that most plants should now have calibrated CEMS and flow meters + some have C14 samplers and more up to date industry data","Version 24a (for incinerators) - 23/09/24"]
["2024-01-08","CO2 N2O tab: Changed the N2O CO2 equivalence factor from 298 to 265 in line with recently updated government greenhouse gas figures: https://www.gov.uk/government/publications/greenhouse-gas-reporting-conversion-factors-2024"]
["2024-01-08","CO2 N2O tab: Added an additional requirement for municipal EfW plants to state the yearly average biogenic percentage of the waste by mass, and reference to a document which sets out a methodology for calculating NCV of waste from the results of C14 sampling."]
["2024-01-08","Permit Compliance tab: Two additional columns added + explanatory notes to the table entitled \"Summary of non-compliances under the permit\" to allow CCS scores to be stated where relevant. "]
["2024-01-08","Residue Quality tab: Note added explaining application of TOC and LOI limits and asking operators to report both metrics where measured. ","Version 24.1a (for incinerators) - 08/11/24"]